Workbook

Sheet Read Me

Sheet Control
G3: Time Series of Output, Supply and Demand | O3: Time Series of Price, Marginal Cost, and | V3: Supply and Demand Schedules
G4: for Good #2 | O4: Marginal Values for Good #2 | V4: for Good #2
A26: SIMLEN: | B26: 300
A27: DT: | B27: 0.01
A28: PER: | B28: =B26/30 -> 10
A29: TIME: | B29: 300.0014954
G47: Time Series of Interest Rates | O47: Time Series of Household Utility | V47: Time Series of Equity Trades
G48: and the Currency Value | O48: and Leisure

Sheet 1 DT
AL4: =-SUM(AL6:AL11) -> -2265.721962 | AM4: =-SUM(AM6:AM11) -> -19147.59403 | AN4: =-SUM(AN6:AN11) -> -86639.00528 | AO4: =-SUM(AO6:AO11) -> -2604.243819 | AP4: =-SUM(AP6:AP11) -> -150858.5514
U5: H | V5: 0 | W5: 1 | X5: 2 | Y5: 3 | Z5: L | AA5: N | AJ5: U | AK5: 0 | AL5: 1 | AM5: 2 | AN5: 3 | AO5: L | AP5: N | AQ5: t | AR5: Z | AT5: Z
H6: < Temporal Parameters, i.e.: Turnover Fractions > | U6: 0 | W6: =SIGN(AL6) -> 1 | X6: 1 | Y6: 1 | Z6: 0 | AA6: 0 | AB6: 0 | AJ6: 0 | AL6: 709.0221284 | AM6: 5415.796956 | AN6: 22353.65259 | AO6: 876 | AP6: 8766 | AQ6: 0 | AR6: =AC21+AR21 -> -1710267.525 | AT6: =Utility!F37 -> -1747827.277 | AU6: 0
T7: =W6-V7 -> 6 | U7: 1 | V7: =-SUM(W7:AA7) -> -5 | W7: 1 | X7: 1 | Y7: 1 | Z7: =SIGN(AO7) -> 1 | AA7: 1 | AB7: 1 | AC7: =1/(1-V7) -> 0.1666666667 | AJ7: 1 | AL7: 579.0221284 | AM7: 5123.677045 | AN7: 24008.40059 | AO7: 997.6057642 | AP7: 56314.33399 | AQ7: 1 | AR7: =AL6 -> 709.0221284 | AT7: =Utility!G37 -> 709.0221284 | AU7: 1
T8: =X6-V8 -> 6 | U8: 2 | V8: =-SUM(W8:AA8) -> -5 | W8: 1 | X8: 1 | Y8: 1 | Z8: 1 | AA8: 1 | AB8: 2 | AC8: =1/(1-V8) -> 0.1666666667 | AI8: Spatial Parameters, | AJ8: 2 | AL8: 493.6502202 | AM8: 4433.704347 | AN8: 20427.11809 | AO8: 836.6047242 | AP8: 47868.89871 | AQ8: 2 | AR8: =AM6 -> 5415.796956 | AT8: =Utility!H37 -> 5283.704347 | AU8: 2
T9: =Y6-V9 -> 6 | U9: 3 | V9: =-SUM(W9:AA9) -> -5 | W9: 1 | X9: 1 | Y9: 1 | Z9: 1 | AA9: 1 | AB9: 3 | AC9: =1/(1-V9) -> 0.1666666667 | AI9: i.e.: production and | AJ9: 3 | AL9: 450.2035597 | AM9: 3960.215016 | AN9: 18653.65259 | AO9: 759.6559399 | AP9: 43341.46156 | AQ9: 3 | AR9: =AN6 -> 22353.65259 | AT9: =Utility!I37 -> 22353.65259 | AU9: 3
E10: i | G10: n | I10: V0 | T10: =Z10-V10 -> 3 | U10: L | V10: =-SUM(W10:Y10)-AA10 -> -4 | W10: 1 | X10: 1 | Y10: 1 | Z10: -1 | AA10: 1 | AB10: L | AC10: =1/(1-V10) -> 0.2 | AI10: utility tradeoffs > | AJ10: L | AL10: 17.85123189 | AM10: 130.8709568 | AN10: 641.8627332 | AO10: =Zl -> -865.6226095 | AP10: 3337.273201 | AQ10: L | AR10: =M59 -> -865.6226095 | AS10: ZL | AT10: =Utility!J41 -> -863.2450447 | AU10: L
E11: =-E78 -> -0.1043177238 | G11: =(1-1/NPV)/Term -> -0.1379863448 | I11: 1 | J11: 0.1 | K11: 0.3333333333 | L11: 1 | M11: 1 | N11: 1 | P11: < V | T11: =AA11-V11 -> 2 | U11: N | V11: =-SUM(W11:Y11) -> -3 | W11: 1 | X11: 1 | Y11: 1 | Z11: 0 | AA11: -1 | AB11: N | AC11: =1/(1-V11) -> 0.25 | AJ11: N | AL11: 15.97269368 | AM11: 83.32970625 | AN11: 554.3186888 | AO11: 0 | AP11: =Zn -> -8769.416036 | AQ11: N | AR11: =N59 -> -8769.416036 | AS11: ZN | AT11: =Utility!K42 -> -8725.940102 | AU11: N
E12: =-GPE!D26 -> -0.1 | G12: =IState!F14 -> -0.1355310143 | I12: 0 | J12: 1 | K12: 2 | L12: 3 | M12: L | N12: N | T12: h | V12: -N | AC12: 1/(N + 1)
E15: k | G15: g | AJ15: ───
E16: =-E19-SUM(E22:E26) -> -482686.3074 | G16: =-G19-SUM(G22:G26) -> 364911.0132 | I16: =-I19-SUM(I21:I26) -> 1.236912794e-10 | J16: -8.09308176e-12 | K16: 7.389644452e-12 | L16: 8.071765478e-12 | M16: -3.524291969e-12 | N16: 2.546585165e-11 | P16: < Markets | T16: =Iota*Kappa+Nu*Gamma -> 0 | V16: =V0*I16 -> 1.236912794e-10 | W16: =J11*J16 -> -8.09308176e-13 | X16: =K11*K16 -> 2.463214817e-12 | Y16: 8.071765478e-12 | Z16: -3.524291969e-12 | AA16: 2.546585165e-11 | AC16: < Market | AI16: =-AI69 -> 18873517.7 | AJ16: U | AK16: =SUM(V72:V76) -> -7156503.407 | AL16: =SUM(AL7:AL11) -> 1556.699834 | AM16: =SUM(AM7:AM11) -> 13731.79707 | AN16: =SUM(AN7:AN11) -> 64285.35269 | AO16: =SUM(AO7:AO9) -> 2593.866428 | AP16: =SUM(AP7:AP10) -> 150861.9675
I17: 0 | J17: 1 | K17: 2 | L17: 3 | M17: L | N17: N | V17: 0 | W17: 1 | X17: 2 | Y17: 3 | Z17: L | AA17: N | AC17: Pressure | AK17: 0 | AL17: 1 | AM17: 2 | AN17: 3 | AO17: L | AP17: N
E19: 0 | G19: 0 | I19: =I29+I39+I49 -> 0 | J19: 0 | K19: 0 | L19: 0 | M19: 0 | N19: 0 | T19: =Iota*E19+Nu*G19 -> 0 | V19: =V0*I19 -> 0 | W19: =J$11*J19 -> 0 | X19: =K$11*K19 -> 0 | Y19: =L$11*L19 -> 0 | Z19: =M$11*M19 -> 0 | AA19: =N$11*N19 -> 0 | AI19: =AI69+T19 -> -18873517.7 | AK19: =V69+V19 -> 8866770.933 | AL19: =AL4+W19 -> -2265.721962 | AM19: =AM4+X19 -> -19147.59403 | AN19: =AN4+Y19 -> -86639.00528 | AO19: =AO4+Z19 -> -2604.243819 | AP19: =AP4+AA19 -> -150858.5514
I20: 0 | J20: 1 | K20: 2 | L20: 3 | M20: L | N20: N | T20: e | U20: E | V20: 0 | W20: 1 | X20: 2 | Y20: 3 | Z20: L | AA20: N | AC20: Y | AI20: u + e | AJ20: m | AK20: 0 | AL20: 1 | AM20: 2 | AN20: 3 | AO20: L | AP20: N | AR20: l | AT20: (u + e)/h
D21: 0 | F21: 0 | H21: 0 | I21: =I31+I41+I51 -> 309552.4676 | J21: -1004.394836 | K21: -2529.856355 | L21: -3214.601592 | M21: -876 | N21: -8766 | O21: 0 | T21: =Iota*E21+Nu*G21 -> 0 | U21: 0 | V21: =V0*I21 -> 309552.4676 | W21: =J$11*J21 -> -100.4394836 | X21: -843.2854518 | Y21: -3214.601592 | Z21: -876 | AA21: -8766 | AB21: 0 | AC21: =V53 -> -309552.4676 | AE21: =-GPE!F14 -> -309552.4676 | AI21: =AI71+T19 -> 0 | AJ21: 0 | AK21: =AR21 -> -1400715.057 | AL21: =AR22 -> 608.5826448 | AM21: =AR23 -> 4572.511504 | AN21: =AR24 -> 19139.051 | AO21: =AO6+Z21 -> 0 | AP21: 0 | AQ21: 0 | AR21: =-W63*AR22-X63*AR23-Y63*AR24-Z63*AR25-AA63*AR26 -> -1400715.057 | AU21: 0
D22: 1 | E22: =E32 -> 171230.4855 | F22: 1 | H22: 1 | I22: -82991.92152 | J22: 295.6051638 | K22: 687.0193441 | L22: 780.8855434 | M22: 18.03450241 | N22: 526.8620571 | O22: 1 | T22: =Iota*E22+G$11*G22 -> -17862.37449 | U22: 1 | V22: -82991.92152 | W22: 29.56051638 | X22: 229.006448 | Y22: 780.8855434 | Z22: 18.03450241 | AA22: 526.8620571 | AB22: 1 | AC22: =AR7-AR22 -> 100.4394836 | AI22: =AI72+T22 -> 7071674.193 | AJ22: 1 | AK22: =V72+V22 -> -2768558.048 | AL22: =AL7+W22 -> 608.5826448 | AM22: 5352.683493 | AN22: 24789.28613 | AO22: 1015.640267 | AP22: 56841.19605 | AQ22: 1 | AR22: =AR7*AC32 -> 608.5826448 | AT22: =AI22/T7 -> 1178612.365 | AU22: 1
C23: Monetary | D23: 2 | E23: =E33 -> 177116.4963 | F23: 2 | H23: 2 | I23: -78553.97768 | J23: 262.2941562 | K23: 416.4214707 | L23: 749.0445155 | M23: 31.00248807 | N23: 687.4979462 | O23: 2 | P23: < Physical | S23: Dividends > | T23: -18476.38974 | U23: 2 | V23: -78553.97768 | W23: 26.22941562 | X23: 138.8071569 | Y23: 749.0445155 | Z23: 31.00248807 | AA23: 687.4979462 | AB23: 2 | AC23: =AR8-AR23 -> 843.2854518 | AD23: < Production | AG23: U + E | AH23: > | AI23: =AI73+T23 -> 6040953.411 | AJ23: 2 | AK23: =V73+V23 -> -2365031.211 | AL23: 519.8796358 | AM23: 4572.511504 | AN23: 21176.16261 | AO23: 867.6072123 | AP23: 48556.39666 | AQ23: 2 | AR23: =AR8*AC33 -> 4572.511504 | AT23: =AI23/T8 -> 1006825.568 | AU23: 2
C24: Stocks > | D24: 3 | E24: =E34 -> 134339.3255 | F24: 3 | H24: 3 | I24: -65219.93155 | J24: 196.6452013 | K24: 517.2854698 | L24: 485.398408 | M24: 24.48890217 | N24: 543.8905366 | O24: 3 | P24: Stocks | T24: -14013.97265 | U24: 3 | V24: -65219.93155 | W24: 19.66452013 | X24: 172.4284899 | Y24: 485.398408 | Z24: 24.48890217 | AA24: 543.8905366 | AB24: 3 | AC24: =AR9-AR24 -> 3214.601592 | AI24: =AI74+T24 -> 5459823.744 | AJ24: 3 | AK24: =V74+V24 -> -2137519.144 | AL24: 469.8680799 | AM24: 4132.643506 | AN24: 19139.051 | AO24: 784.144842 | AP24: 43885.35209 | AQ24: 3 | AR24: =AR9*AC34 -> 19139.051 | AT24: =AI24/T9 -> 909970.624 | AU24: 3
D25: L | F25: L | G25: =G35+G45+G55 -> -323924.3823 | H25: L | I25: -61083.89608 | J25: 199.8803438 | K25: 605.8133139 | L25: 899.4372145 | M25: 802.4741074 | N25: 196.8879694 | O25: L | T25: 44697.1415 | U25: L | V25: -61083.89608 | W25: 19.98803438 | X25: 201.9377713 | Y25: 899.4372145 | Z25: 802.4741074 | AA25: 196.8879694 | AB25: L | AC25: =AR10-AR25 -> -802.4741074 | AD25: < | AE25: YL = - Leisure | AI25: =AI75+T25 -> 219844.3918 | AJ25: L | AK25: =V75+V25 -> -137710.4077 | AL25: 37.83926627 | AM25: 332.8087281 | AN25: 1541.299948 | AO25: =AR25 -> -63.1485022 | AP25: =AP10+AA25 -> 3534.161171 | AQ25: L | AR25: =AR10*AC35 -> -63.1485022 | AT25: =AI25/T10 -> 73281.46392 | AU25: L
D26: N | F26: N | G26: =G36+G46+G56 -> -40986.63089 | H26: N | I26: -21702.7408 | J26: 49.96997114 | K26: 303.316757 | L26: 299.8359106 | M26: 0 | N26: 6810.861491 | O26: N | T26: 5655.595381 | U26: N | V26: -21702.7408 | W26: 4.996997114 | X26: 101.1055857 | Y26: 299.8359106 | Z26: 0 | AA26: 6810.861491 | AB26: N | AC26: =AR11-AR26 -> -6810.861491 | AD26: < | AE26: YN = - Leisure | AI26: =AI76+T26 -> 81221.95754 | AJ26: N | AK26: =V76+V26 -> -57237.06389 | AL26: 20.96969079 | AM26: 184.4352919 | AN26: 854.1545994 | AO26: =AO11+Z26 -> 0 | AP26: =AR26 -> -1958.554546 | AQ26: N | AR26: =AR11*AC36 -> -1958.554546 | AT26: =AI26/T11 -> 40610.97877 | AU26: N
E27: Investment | G27: Saving | AN27: l
E29: 0 | G29: 0 | I29: 0 | J29: 0 | K29: 0 | L29: 0 | M29: 0 | N29: 0 | X29: - Y/l
H30: A | I30: 0 | J30: 1 | K30: 2 | L30: 3 | M30: L | N30: N | T30: w | U30: W | V30: 0 | W30: 1 | X30: 2 | Y30: 3 | Z30: L | AA30: N | AC30: l/Z | AI30: b = e/w | AK30: Q = E0/W0 | AR30: z = pl | AT30: q = P0*Q
D31: 0 | E31: 0 | F31: 0 | G31: 0 | H31: 0 | I31: 103184.1559 | J31: -334.7982787 | K31: -843.2854518 | L31: -1071.533864 | M31: -292 | N31: -2922 | O31: 0 | U31: 0 | V31: =-AC21/AR21 -> -0.2209960305 | W31: =-AC22/AR22 -> -0.1650383633 | X31: =-AC23/AR23 -> -0.1844250039 | Y31: =-AC24/AR24 -> -0.1679603441 | AB31: 0 | AC31: =AR21/Z0 -> 0.8190034816 | AJ31: 0 | AQ31: 0 | AU31: 0
D32: 1 | E32: 171230.4855 | F32: 1 | H32: 1 | I32: -27663.97384 | J32: 98.53505459 | K32: 229.006448 | L32: 260.2951811 | M32: 6.011500804 | N32: 175.6206857 | O32: 1 | T32: =W31-V32 -> -0.0151554277 | U32: 1 | V32: =-SUM(W32:AA32) -> -0.1498829356 | W32: =W22/AL22 -> 0.04857272324 | X32: 0.0427834839 | Y32: 0.03150092904 | Z32: 0.01775678161 | AA32: 0.009269017786 | AB32: 1 | AC32: =(1-W32)*(1-X32)*(1-Y32)*(1-Z32)*(1-AA32) -> 0.8583408337 | AI32: =T22/T32 -> 1178612.365 | AJ32: 1 | AK32: =V22/V32 -> 553711.6096 | AQ32: 1 | AR32: =AR55*AR22 -> 1178612.365 | AT32: =P0*AK32 -> 1178612.365 | AU32: 1
D33: 2 | E33: 177116.4963 | F33: 2 | H33: 2 | I33: -26184.65923 | J33: 87.43138541 | K33: 138.8071569 | L33: 249.6815052 | M33: 10.33416269 | N33: 229.1659821 | O33: 2 | R33: E | S33: > | T33: =X31-V33 -> -0.01835113282 | U33: 2 | V33: =-SUM(W33:AA33) -> -0.166073871 | W33: 0.0504528622 | X33: 0.03035687428 | Y33: 0.035372061 | Z33: 0.03573332221 | AA33: 0.01415875134 | AB33: 2 | AC33: =(1-W33)*(1-X33)*(1-Y33)*(1-Z33)*(1-AA33) -> 0.8442915311 | AI33: =T23/T33 -> 1006825.568 | AJ33: 2 | AK33: =V23/V33 -> 473006.2423 | AQ33: 2 | AR33: =AR56*AR23 -> 1006825.568 | AT33: =P0*AK33 -> 1006825.568 | AU33: 2
D34: 3 | E34: 134339.3255 | F34: 3 | H34: 3 | I34: -21739.97718 | J34: 65.54840042 | K34: 172.4284899 | L34: 161.7994693 | M34: 8.162967391 | N34: 181.2968455 | O34: 3 | R34: U + E | T34: =Y31-V34 -> -0.0154004671 | U34: 3 | V34: =-SUM(W34:AA34) -> -0.152559877 | W34: 0.04185115135 | X34: 0.04172353354 | Y34: 0.02536167588 | Z34: 0.03123007493 | AA34: 0.01239344133 | AB34: 3 | AC34: =(1-W34)*(1-X34)*(1-Y34)*(1-Z34)*(1-AA34) -> 0.856193453 | AI34: =T24/T34 -> 909970.624 | AJ34: 3 | AK34: =V24/V34 -> 427503.8288 | AQ34: 3 | AR34: 909970.624 | AT34: =P0*AK34 -> 909970.624 | AU34: 3
D35: L | F35: L | G35: -107974.7941 | H35: L | I35: -20361.29869 | J35: 66.62678126 | K35: 201.9377713 | L35: 299.8124048 | M35: 267.4913691 | N35: 65.62932314 | O35: L | T35: =Z35-V35 -> 0.6099378903 | U35: L | V35: =-SUM(W35:Y35)-AA35 -> -1.774271011 | W35: =W25/AL25 -> 0.5282352527 | X35: 0.6067682553 | Y35: 0.5835575456 | Z35: =(AO6+AC25)/AR25 -> -1.164333121 | AA35: =AA25/AP25 -> 0.05570995773 | AB35: L | AC35: =(1-W35)*(1-X35)*(1-Y35)*(1-AA35) -> 0.07295153974 | AI35: =T25/T35 -> 73281.46392 | AJ35: L | AK35: =V25/V35 -> 34427.60192 | AQ35: L | AR35: 73281.46392 | AT35: =P0*AK35 -> 73281.46392 | AU35: L
D36: N | F36: N | G36: -13662.2103 | H36: N | I36: -7234.246934 | J36: 16.65665705 | K36: 101.1055857 | L36: 99.94530353 | M36: 0 | N36: 2270.287164 | O36: N | T36: =AA36-V36 -> 0.1392627204 | U36: N | V36: =-SUM(W36:Y36) -> -1.137518558 | W36: 0.2382961754 | X36: 0.5481900163 | Y36: 0.3510323668 | AA36: =(AP6+AC26)/AR26 -> -0.998255838 | AB36: N | AC36: =(1-W36)*(1-X36)*(1-Y36)*(1-Z36) -> 0.2233392209 | AI36: =T26/T36 -> 40610.97877 | AJ36: N | AK36: =V26/V36 -> 19079.0213 | AQ36: N | AR36: 40610.97877 | AT36: =P0*AK36 -> 40610.97877 | AU36: N
Z37: (t+Y)/l
G39: 0 | I39: 0 | J39: 0 | K39: 0 | L39: 0 | M39: 0 | N39: 0 | T39: =T41-V39 -> -8866770.933 | V39: =-SUM(W39:AA39) -> 8866770.933 | W39: =-SUM(W41:W46) -> -2061439.914 | X39: =-SUM(X41:X46) -> -1980734.546 | Y39: =-SUM(Y41:Y46) -> -1935232.133 | Z39: =-SUM(Z41:Z46) -> -1419794.079 | AA39: =-SUM(AA41:AA46) -> -1469570.261 | AI39: =AI41-AK39 -> -18873517.7 | AK39: =-SUM(AL39:AP39) -> 18873517.7 | AL39: =-SUM(AL41:AL46) -> -4387913.366 | AM39: =-SUM(AM41:AM46) -> -4216126.569 | AN39: =-SUM(AN41:AN46) -> -4119271.625 | AO39: =-SUM(AO41:AO46) -> -3022127.094 | AP39: =-SUM(AP41:AP46) -> -3128079.043
H40: B | I40: 0 | J40: 1 | K40: 2 | L40: 3 | M40: L | N40: N | T40: hQ | U40: HQ | V40: 0 | W40: 1 | X40: 2 | Y40: 3 | Z40: L | AA40: N | AI40: hb | AJ40: Hb | AK40: 0 | AL40: 1 | AM40: 2 | AN40: 3 | AO40: L | AP40: N | AT40: (PU + s)/N
F41: 0 | H41: 0 | I41: 103184.1559 | J41: -334.7982787 | K41: -843.2854518 | L41: -1071.533864 | M41: -292 | N41: -2922 | O41: 0 | T41: =V41-V41 -> 0 | U41: 0 | V41: =-V39-SUM(V42:V46) -> -1400715.057 | W41: =W6*AK32 -> 553711.6096 | X41: =X6*AK33 -> 473006.2423 | Y41: =Y6*AK34 -> 427503.8288 | Z41: =Z6*AK35 -> 0 | AA41: =AA6*AK36 -> 0 | AB41: 0 | AI41: =AK41-AK41 -> 0 | AJ41: 0 | AK41: =-AK39-SUM(AK42:AK46) -> -2981516.115 | AL41: =W6*AI32 -> 1178612.365 | AM41: =X6*AI33 -> 1006825.568 | AN41: =Y6*AI34 -> 909970.624 | AO41: =Z6*AI35 -> 0 | AP41: =AA6*AI36 -> 0 | AQ41: 0 | AU41: 0
F42: 1 | H42: 1 | I42: -27663.97384 | J42: 98.53505459 | K42: 229.006448 | L42: 260.2951811 | M42: 6.011500804 | N42: 175.6206857 | O42: 1 | T42: =T7*$AK32 -> 3322269.658 | U42: 1 | V42: =V7*$AK32 -> -2768558.048 | W42: 553711.6096 | X42: 553711.6096 | Y42: 553711.6096 | Z42: 553711.6096 | AA42: 553711.6096 | AB42: 1 | AI42: =T7*$AI32 -> 7071674.193 | AJ42: 1 | AK42: =V7*$AI32 -> -5893061.827 | AL42: 1178612.365 | AM42: 1178612.365 | AN42: 1178612.365 | AO42: 1178612.365 | AP42: 1178612.365 | AQ42: 1 | AT42: =(AK72+AK104)/V7 -> 1178612.365 | AU42: 1
F43: 2 | H43: 2 | I43: -26184.65923 | J43: 87.43138541 | K43: 138.8071569 | L43: 249.6815052 | M43: 10.33416269 | N43: 229.1659821 | O43: 2 | T43: =T8*$AK33 -> 2838037.454 | U43: 2 | V43: -2365031.211 | W43: 473006.2423 | X43: 473006.2423 | Y43: 473006.2423 | Z43: 473006.2423 | AA43: 473006.2423 | AB43: 2 | AI43: =T8*$AI33 -> 6040953.411 | AJ43: 2 | AK43: -5034127.842 | AL43: 1006825.568 | AM43: 1006825.568 | AN43: 1006825.568 | AO43: 1006825.568 | AP43: 1006825.568 | AQ43: 2 | AT43: =(AK73+AK105)/V8 -> 1006825.568 | AU43: 2
F44: 3 | H44: 3 | I44: -21739.97718 | J44: 65.54840042 | K44: 172.4284899 | L44: 161.7994693 | M44: 8.162967391 | N44: 181.2968455 | O44: 3 | T44: =T9*$AK34 -> 2565022.973 | U44: 3 | V44: -2137519.144 | W44: 427503.8288 | X44: 427503.8288 | Y44: 427503.8288 | Z44: 427503.8288 | AA44: 427503.8288 | AB44: 3 | AI44: =T9*$AI34 -> 5459823.744 | AJ44: 3 | AK44: -4549853.12 | AL44: 909970.624 | AM44: 909970.624 | AN44: 909970.624 | AO44: 909970.624 | AP44: 909970.624 | AQ44: 3 | AT44: =(AK74+AK106)/V9 -> 909970.624 | AU44: 3
D45: System State | F45: L | G45: -107974.7941 | H45: L | I45: -20361.29869 | J45: 66.62678126 | K45: 201.9377713 | L45: 299.8124048 | M45: 267.4913691 | N45: 65.62932314 | O45: L | T45: =T10*$AK35 -> 103282.8058 | U45: L | V45: -137710.4077 | W45: 34427.60192 | X45: 34427.60192 | Y45: 34427.60192 | Z45: -34427.60192 | AA45: 34427.60192 | AB45: L | AI45: =T10*$AI35 -> 219844.3918 | AJ45: L | AK45: -293125.8557 | AL45: 73281.46392 | AM45: 73281.46392 | AN45: 73281.46392 | AO45: -73281.46392 | AP45: 73281.46392 | AQ45: L | AT45: =(AK75+AK107)/V10 -> 73281.46392 | AU45: L
D46: at time = t > | F46: N | G46: -13662.2103 | H46: N | I46: -7234.246934 | J46: 16.65665705 | K46: 101.1055857 | L46: 99.94530353 | M46: 0 | N46: 2270.287164 | O46: N | T46: =T11*$AK36 -> 38158.0426 | U46: N | V46: -57237.06389 | W46: 19079.0213 | X46: 19079.0213 | Y46: 19079.0213 | Z46: 0 | AA46: -19079.0213 | AB46: N | AI46: =T11*$AI36 -> 81221.95754 | AJ46: N | AK46: -121832.9363 | AL46: 40610.97877 | AM46: 40610.97877 | AN46: 40610.97877 | AO46: 0 | AP46: -40610.97877 | AQ46: N | AT46: =(AK76+AK108)/V11 -> 40610.97877 | AU46: N
U48: ───
G49: 0 | I49: 0 | J49: 0 | K49: 0 | L49: 0 | M49: 0 | N49: 0 | T49: =SUM(T42:T46) -> 8866770.933 | U49: Q | V49: =SUM(V42:V46) -> -7466055.875 | W49: =SUM(W42:W46) -> 1507728.304 | X49: =SUM(X42:X46) -> 1507728.304 | Y49: =SUM(Y42:Y46) -> 1507728.304 | Z49: =SUM(Z42:Z44) -> 1454221.681 | AA49: =SUM(AA42:AA45) -> 1488649.283
H50: C | I50: 0 | J50: 1 | K50: 2 | L50: 3 | M50: L | N50: N | V50: 0 | W50: 1 | X50: 2 | Y50: 3 | Z50: L | AA50: N
F51: 0 | H51: 0 | I51: 103184.1559 | J51: -334.7982787 | K51: -843.2854518 | L51: -1071.533864 | M51: -292 | N51: -2922 | O51: 0 | AH51: Intersection of
F52: 1 | H52: 1 | I52: -27663.97384 | J52: 98.53505459 | K52: 229.006448 | L52: 260.2951811 | M52: 6.011500804 | N52: 175.6206857 | O52: 1 | AH52: S/D Schedules > | AI52: =AI39/AI19 -> 1 | AK52: =AK39/AK19 -> 2.128567191 | AL52: =AL39/AL19 -> 1936.651292 | AM52: 220.1909317 | AN52: 47.54523221 | AO52: 1160.462424 | AP52: 20.73517884 | AU52: 1/(N+1)
F53: 2 | H53: 2 | I53: -26184.65923 | J53: 87.43138541 | K53: 138.8071569 | L53: 249.6815052 | M53: 10.33416269 | N53: 229.1659821 | O53: 2 | T53: =-T103 -> 0 | U53: Yt | V53: =-V103 -> -309552.4676 | W53: =AC22 -> 100.4394836 | X53: =AC23 -> 843.2854518 | Y53: =AC24 -> 3214.601592 | Z53: =AO6 -> 876 | AA53: =AP6 -> 8766 | AC53: < Output | AJ53: c Hb/m | AK53: 0 | AL53: 1 | AM53: 2 | AN53: 3 | AO53: L | AP53: N | AR53: p | AT53: (pZPU)
F54: 3 | H54: 3 | I54: -21739.97718 | J54: 65.54840042 | K54: 172.4284899 | L54: 161.7994693 | M54: 8.162967391 | N54: 181.2968455 | O54: 3 | V54: 0 | W54: 1 | X54: 2 | Y54: 3 | Z54: L | AA54: N | AH54: Marginal Costs of Production > | AI54: 1 | AJ54: 0 | AK54: =AK41/AK21 -> 2.128567191 | AL54: 1936.651292 | AM54: 220.1909317 | AN54: 47.54523221 | AQ54: 0 | AU54: 0
F55: L | G55: -107974.7941 | H55: L | I55: -20361.29869 | J55: 66.62678126 | K55: 201.9377713 | L55: 299.8124048 | M55: 267.4913691 | N55: 65.62932314 | O55: L | AI55: =AI42/AI22 -> 1 | AJ55: 1 | AK55: 2.128567191 | AL55: 1936.651292 | AM55: 220.1909317 | AN55: 47.54523221 | AO55: =AO42/AO22 -> 1160.462424 | AP55: 20.73517884 | AQ55: 1 | AR55: =AL52 -> 1936.651292 | AT55: =(AR55*AR7*AR72)^AC7 -> 1178612.365 | AU55: 1
F56: N | G56: -13662.2103 | H56: N | I56: -7234.246934 | J56: 16.65665705 | K56: 101.1055857 | L56: 99.94530353 | M56: 0 | N56: 2270.287164 | O56: N | T56: =T53+T16 -> 0 | U56: S | V56: =-GPE!F14 -> -309552.4676 | W56: =W53+W16 -> 100.4394836 | X56: =X53+X16 -> 843.2854518 | Y56: 3214.601592 | Z56: =Z53+Z16+AC25 -> 73.52589265 | AA56: =AA53+AA16+AC26 -> 1955.138509 | AC56: < Supply | AH56: Values of > | AI56: 1 | AJ56: 2 | AK56: 2.128567191 | AL56: 1936.651292 | AM56: 220.1909317 | AN56: 47.54523221 | AO56: 1160.462424 | AP56: 20.73517884 | AQ56: 2 | AR56: =AM52 -> 220.1909317 | AT56: =(AR56*AR8*AR73)^AC8 -> 1006825.568 | AU56: 2
V57: 0 | W57: 1 | X57: 2 | Y57: 3 | Z57: L | AA57: N | AH57: Marginal Product | AI57: 1 | AJ57: 3 | AK57: 2.128567191 | AL57: 1936.651292 | AM57: 220.1909317 | AN57: 47.54523221 | AO57: 1160.462424 | AP57: 20.73517884 | AQ57: 3 | AR57: =AN52 -> 47.54523221 | AT57: =(AR57*AR9*AR74)^AC9 -> 909970.624 | AU57: 3
AI58: 1 | AJ58: L | AK58: 2.128567191 | AL58: 1936.651292 | AM58: 220.1909317 | AN58: 47.54523221 | AO58: 1160.462424 | AP58: 20.73517884 | AQ58: L | AR58: =-AO52 -> -1160.462424 | AT58: =(AR58*AR10*AR75)^AC10 -> 73281.46392 | AU58: L
G59: 0 | M59: -865.6226095 | N59: -8769.416036 | AI59: 1 | AJ59: N | AK59: 2.128567191 | AL59: 1936.651292 | AM59: 220.1909317 | AN59: 47.54523221 | AP59: =AP46/AP26 -> 20.73517884 | AQ59: N | AR59: =-AP52 -> -20.73517884 | AT59: =(AR59*AR11*AR76)^AC11 -> 40610.97877 | AU59: N
M60: =Utility!J41 -> -863.2450447 | N60: =Utility!K42 -> -8725.940102
G61: 0 | H61: 0
H62: 1 | T62: =1/GPE!F26 -> 0.5 | V62: =1 -> 1 | W62: =AL62/$AK62 -> 934.5199679 | X62: =AM62/$AK62 -> 106.9079388 | Y62: =AN62/$AK62 -> 22.94155715 | Z62: =AO62/$AK62 -> 559.2964977 | AA62: =AP62/$AK62 -> 10 | AI62: 1 | AK62: =GPE!F26 -> 2 | AL62: =GPE!G26 -> 1869.039936 | AM62: =GPE!H26 -> 213.8158777 | AN62: =GPE!I26 -> 45.8831143 | AO62: =GPE!J26 -> 1118.592995 | AP62: =GPE!K26 -> 20
H63: 2 | S63: Currency > | T63: =T39/AI39 -> 0.469799593 | U63: Y | V63: =V49/(AK16+V56) -> 1 | W63: 909.8379889 | X63: 103.4456101 | Y63: 22.33673074 | Z63: 545.1847744 | AA63: 9.741378579 | AC63: <Values | AH63: Prices > | AI63: =P0*T63 -> 1 | AJ63: P | AK63: =AK39/(V69+V19) -> 2.128567191 | AL63: =P0*W63 -> 1936.651292 | AM63: =P0*X63 -> 220.1909317 | AN63: =P0*Y63 -> 47.54523221 | AO63: =P0*Z63 -> 1160.462424 | AP63: =P0*AA63 -> 20.73517884
H64: 3 | R64: Value | T64: G/$ | V64: 0 | W64: 1 | X64: 2 | Y64: 3 | Z64: L | AA64: N | AC64: G/unit | AG64: $/unit | AK64: 0 | AL64: 1 | AM64: 2 | AN64: 3 | AO64: L | AP64: N
E65: Maturing | G65: =3*G55/Term -> -51276.85591 | H65: L
E66: Principal > | G66: =3*G56/Term -> -6488.13637 | H66: N
T69: =T71-V69 -> -8866770.933 | V69: =-SUM(W69:AA69) -> 8866770.933 | W69: =W$63*AL4 -> -2061439.914 | X69: =X$63*AM4 -> -1980734.546 | Y69: =Y$63*AN4 -> -1935232.133 | Z69: =Z$63*AO4 -> -1419794.079 | AA69: =AA$63*AP4 -> -1469570.261 | AI69: =AI71-AK69 -> -18873517.7 | AK69: =-SUM(AL69:AP69) -> 18873517.7 | AL69: =AL$63*AL4 -> -4387913.366 | AM69: =AM$63*AM4 -> -4216126.569 | AN69: =AN$63*AN4 -> -4119271.625 | AO69: =AO$63*AO4 -> -3022127.094 | AP69: =AP$63*AP4 -> -3128079.043
T70: ¡ | U70: YU | V70: 0 | W70: 1 | X70: 2 | Y70: 3 | Z70: L | AA70: N | AI70: u | AJ70: PU | AK70: 0 | AL70: 1 | AM70: 2 | AN70: 3 | AO70: L | AP70: N | AR70: PU | AT70: u/(h - w)
T71: =V71-V71 -> 0 | U71: 0 | V71: =-V69-SUM(V72:V76) -> -1710267.525 | W71: =W$63*AL6 -> 645095.2674 | X71: 560240.4203 | Y71: 499307.519 | Z71: 477581.8624 | AA71: 85392.92463 | AB71: 0 | AI71: =AK71-AK71 -> 0 | AJ71: 0 | AK71: =-AK69-SUM(AK72:AK76) -> -3640419.342 | AL71: =AL$63*AL6 -> 1373128.621 | AM71: 1192509.378 | AN71: 1062809.603 | AO71: 1016565.083 | AP71: 181764.5777 | AQ71: 0 | AU71: 0
T72: =W71-V72 -> 3330661.394 | U72: 1 | V72: =-SUM(W72:AA72) -> -2685566.127 | W72: 526816.3288 | X72: 530021.8979 | Y72: 536269.1795 | Z72: 543879.4735 | AA72: 548579.2469 | AB72: 1 | AI72: =AL71-AK72 -> 7089536.567 | AJ72: 1 | AK72: =-SUM(AL72:AP72) -> -5716407.946 | AL72: 1121363.953 | AM72: 1128187.222 | AN72: 1141484.981 | AO72: 1157684.003 | AP72: 1167687.787 | AQ72: 1 | AR72: =AL72*AM72*AN72*AO72*AP72 -> 1.952156988e+30 | AT72: =AR55*AR22 -> 1178612.365 | AU72: 1
T73: =X71-V73 -> 2846717.654 | U73: 2 | V73: =-SUM(W73:AA73) -> -2286477.234 | W73: 449141.7235 | X73: 458647.2513 | Y73: 456275.0366 | Z73: 456104.1578 | AA73: 466309.0645 | AB73: 2 | AC73: Interaction | AH73: Interaction | AI73: =AM71-AK73 -> 6059429.8 | AJ73: 2 | AK73: =-SUM(AL73:AP73) -> -4866920.423 | AL73: 956028.3368 | AM73: 976261.4913 | AN73: 971212.073 | AO73: 970848.346 | AP73: 992570.1756 | AQ73: 2 | AR73: =AL73*AM73*AN73*AO73*AP73 -> 8.735014151e+29 | AT73: =AR56*AR23 -> 1006825.568 | AU73: 2
T74: =Y71-V74 -> 2571606.731 | U74: 3 | V74: =-SUM(W74:AA74) -> -2072299.212 | W74: 409612.3014 | X74: 409666.8585 | Y74: 416661.6153 | Z74: 414152.8522 | AA74: 422205.5852 | AB74: 3 | AC74: < of Utility | AH74: of Utility > | AI74: =AN71-AK74 -> 5473837.717 | AJ74: 3 | AK74: =-SUM(AL74:AP74) -> -4411028.114 | AL74: 871887.3057 | AM74: 872003.4342 | AN74: 886892.244 | AO74: 881552.1733 | AP74: 898692.9565 | AQ74: 3 | AR74: =AL74*AM74*AN74*AO74*AP74 -> 5.342060044e+29 | AT74: =AR57*AR24 -> 909970.624 | AU74: 3
T75: =Z71+Z75-V75 -> 82284.10689 | U75: L | V75: =-SUM(W75:Y75)-AA75 -> -76626.51162 | W75: 16241.72892 | X75: 13538.02597 | Y75: 14337.11505 | Z75: -471924.2671 | AA75: 32509.64168 | AB75: L | AC75: with Values | AH75: with Prices | AI75: =AO71+AO75-AK75 -> 175147.2503 | AJ75: L | AK75: =-SUM(AL75:AN75)-AP75 -> -163104.6786 | AL75: 34571.61131 | AM75: 28816.59791 | AN75: 30517.5127 | AO75: -1004522.512 | AP75: 69198.95666 | AQ75: L | AR75: =AL75*AM75*AN75*AP75 -> 2.103831768e+18 | AT75: =AR58*AR25 -> 73281.46392 | AU75: L
T76: =AA71+AA76-V76 -> 35501.04619 | U76: N | V76: =-SUM(W76:Z76) -> -35534.32309 | W76: =W$63*AL11 -> 14532.56349 | X76: =X$63*AM11 -> 8620.092303 | Y76: =Y$63*AN11 -> 12381.6673 | AA76: =AA$63*AP11 -> -85426.20153 | AB76: N | AI76: =AP71+AP76-AK76 -> 75566.36216 | AJ76: N | AK76: =-SUM(AL76:AN76) -> -75637.19429 | AL76: 30933.53785 | AM76: 18348.44566 | AN76: 26355.21078 | AO76: 0 | AP76: -181835.4098 | AQ76: N | AR76: =AL76*AM76*AN76 -> 1.495875216e+13 | AT76: =AR59*AR26 -> 40610.97877 | AU76: N
E77: - i | G77: Domestic
E78: =-V0-I81/I78 -> 0.1043177238 | F78: < | G78: Interest | I78: =-SUM(I22:I24) -> 226765.8307 | J78: < Asset Valuations, a | AK78: - PU
E79: =GPE!D26 -> 0.1 | G79: Rate | I79: 0
E81: Supply Valuations, YS | H81: > | I81: =-SUM(J81:N81) -> -250421.526 | J81: =W63*W53 -> 91383.65778 | K81: =X63*X53 -> 87234.17805 | L81: =Y63*Y53 -> 71803.6902 | T81: =AI81/AI$63-AI69 -> -8.940696716e-08 | V81: =AK81/AK$63-V69 -> 3.725290298e-08 | W81: =AL81/AL$63-AL4 -> -9.549694369e-12 | X81: =AM81/AM$63-AM4 -> -9.458744898e-11 | Y81: =AN81/AN$63-AN4 -> -3.929017112e-10 | Z81: =AO81/AO$63-AO4 -> -5.911715562e-12 | AA81: =AP81/AP$63-AP4 -> -8.149072528e-10 | AI81: =AI83-AK81 -> -18873517.7 | AK81: =-SUM(AL81:AP81) -> 18873517.7 | AL81: =-SUM(AL83:AL88) -> -4387913.366 | AM81: =-SUM(AM83:AM88) -> -4216126.569 | AN81: =-SUM(AN83:AN88) -> -4119271.625 | AO81: =-SUM(AO83:AO88) -> -3022127.094 | AP81: =-SUM(AP83:AP88) -> -3128079.043
I82: 0 | J82: 1 | K82: 2 | L82: 3 | M82: L | N82: N | T82: -f | U82: Q | V82: 0 | W82: 1 | X82: 2 | Y82: 3 | Z82: L | AA82: N | AI82: hz | AJ82: Hz | AK82: 0 | AL82: 1 | AM82: 2 | AN82: 3 | AO82: L | AP82: N
T83: 0 | U83: 0 | V83: =AK83/AK$63-V71 -> 309552.4676 | W83: =AL83/AL$63-AL6 -> -100.4394836 | X83: -843.2854518 | Y83: -3214.601592 | Z83: -876 | AA83: -8766 | AB83: 0 | AI83: =AK83-AK83 -> 0 | AJ83: 0 | AK83: =-AK81-SUM(AK84:AK88) -> -2981516.115 | AL83: =W6*$AR32 -> 1178612.365 | AM83: =X6*$AR33 -> 1006825.568 | AN83: =Y6*$AR34 -> 909970.624 | AO83: =Z6*$AR35 -> 0 | AP83: =AA6*$AR36 -> 0 | AQ83: 0
T84: -17862.37449 | U84: 1 | V84: -82991.92152 | W84: 29.56051638 | X84: 229.006448 | Y84: 780.8855434 | Z84: 18.03450241 | AA84: 526.8620571 | AB84: 1 | AI84: =T7*$AR32 -> 7071674.193 | AJ84: 1 | AK84: =V7*$AR32 -> -5893061.827 | AL84: 1178612.365 | AM84: 1178612.365 | AN84: 1178612.365 | AO84: 1178612.365 | AP84: 1178612.365 | AQ84: 1
T85: -18476.38974 | U85: 2 | V85: -78553.97768 | W85: 26.22941562 | X85: 138.8071569 | Y85: 749.0445155 | Z85: 31.00248807 | AA85: 687.4979462 | AB85: 2 | AC85: Optimal | AI85: =T8*$AR33 -> 6040953.411 | AJ85: 2 | AK85: -5034127.842 | AL85: 1006825.568 | AM85: 1006825.568 | AN85: 1006825.568 | AO85: 1006825.568 | AP85: 1006825.568 | AQ85: 2
I86: NPV | J86: 1 | T86: -14013.97265 | U86: 3 | V86: -65219.93155 | W86: 19.66452013 | X86: 172.4284899 | Y86: 485.398408 | Z86: 24.48890217 | AA86: 543.8905366 | AB86: 3 | AC86: < Rates of | AI86: =T9*$AR34 -> 5459823.744 | AJ86: 3 | AK86: -4549853.12 | AL86: 909970.624 | AM86: 909970.624 | AN86: 909970.624 | AO86: 909970.624 | AP86: 909970.624 | AQ86: 3
E87: Investment | G87: =LN(1-Iota)*(1-Iota)^Term+Iota*Kappa/Gamma -> 0.3237091007 | I87: =1/(1+Iota*Term*Kappa/Gamma) -> 0.5342786306 | J87: 1+iTk/g | T87: 44697.1415 | U87: L | V87: -61083.89608 | W87: 19.98803438 | X87: 201.9377713 | Y87: 899.4372145 | Z87: 802.4741074 | AA87: 196.8879694 | AB87: L | AC87: Change | AI87: =T10*$AR35 -> 219844.3918 | AJ87: L | AK87: -293125.8557 | AL87: 73281.46392 | AM87: 73281.46392 | AN87: 73281.46392 | AO87: -73281.46392 | AP87: 73281.46392 | AQ87: L
E88: Term | I88: =IState!D11 -> 0.5131581182 | T88: 5655.595381 | U88: N | V88: -21702.7408 | W88: 4.996997114 | X88: 101.1055857 | Y88: 299.8359106 | Z88: 0 | AA88: 6810.861491 | AB88: N | AI88: =T11*$AR36 -> 81221.95754 | AJ88: N | AK88: -121832.9363 | AL88: 40610.97877 | AM88: 40610.97877 | AN88: 40610.97877 | AO88: 0 | AP88: -40610.97877 | AQ88: N
E89: Calculation | G89: =Term-(1/I89-1/NPV)/G87 -> 6.317165446 | I89: =(1-Iota/V0)^(-Term*V0) -> 0.5342786306 | J89: 1
J90: (1 - i)T
T91: =SUM(T84:T88) -> 9.13569238e-08 | U91: D | V91: =SUM(V84:V88) -> -309552.4676 | W91: =SUM(W84:W88) -> 100.4394836 | X91: =SUM(X84:X88) -> 843.2854518 | Y91: =SUM(Y84:Y88) -> 3214.601592 | Z91: =SUM(Z84:Z86) -> 73.52589265 | AA91: =SUM(AA84:AA87) -> 1955.138509 | AC91: < Demand | AK91: =-SUM(AL91:AP91) -> 0
V92: 0 | W92: 1 | X92: 2 | Y92: 3 | Z92: L | AA92: N | AJ92: FI | AK92: 0 | AL92: 1 | AM92: 2 | AN92: 3 | AO92: L | AP92: N
AI93: =-SUM(AI94:AI98) -> 0 | AJ93: 0 | AK93: =-AK91-SUM(AK94:AK98) -> 0 | AQ93: 0
G94: T | AC94: Demand | AH94: Financial | AI94: =AL93-AK94 -> -3.56508086e-09 | AJ94: 1 | AK94: =-SUM(AL94:AP94) -> 3.56508086e-09 | AL94: 0 | AM94: =(AI56-AI55)*(V0-Iota)*(E22+E23) -> 2.562521835e-10 | AN94: =(AI57-AI55)*(V0-Iota)*(E22+E24) -> -3.821333043e-09 | AQ94: 1
G95: 6.317165446 | U95: F | V95: =S0/V91 -> 1 | W95: =IF(W91>W56,W56/W91,1) -> 1 | X95: =IF(X91>X56,X56/X91,1) -> 1 | Y95: =IF(Y91>Y56,Y56/Y91,1) -> 1 | Z95: =IF(Z91>Z56,Z56/Z91,1) -> 1 | AA95: =IF(AA91>AA56,AA56/AA91,1) -> 1 | AC95: < Factors | AH95: Intermediation > | AI95: =AM93-AK95 -> -4.380307492e-09 | AJ95: 2 | AK95: =-SUM(AL95:AP95) -> 4.380307492e-09 | AL95: =-AM94 -> -2.562521835e-10 | AM95: 0 | AN95: =(AI57-AI56)*(V0-Iota)*(E23+E24) -> -4.124055308e-09 | AQ95: 2
G96: =IState!F11 -> 7 | V96: 0 | W96: 1 | X96: 2 | Y96: 3 | Z96: L | AA96: N | AI96: =AN93-AK96 -> 7.945388351e-09 | AJ96: 3 | AK96: =-SUM(AL96:AP96) -> -7.945388351e-09 | AL96: =-AN94 -> 3.821333043e-09 | AM96: =-AN95 -> 4.124055308e-09 | AN96: 0 | AQ96: 3
AI97: 0 | AJ97: L | AK97: =-SUM(AL97:AP97) -> 0 | AQ97: L
AI98: 0 | AJ98: N | AK98: =-SUM(AL98:AP98) -> 0 | AQ98: N
AC100: imports ( - ) | AH100: Trade | AS100: Monetary
E101: 0 | G101: 0 | I101: =I29+DT*(V101-I$11*I29*3) -> 0 | J101: 0 | K101: 0 | L101: 0 | M101: 0 | N101: 0 | T101: =AI91+AI101 -> 0 | V101: =-W63*W101-X63*X101-Y63*Y101-Z63*Z101-AA63*AA101 -> 0 | W101: =0 -> 0 | X101: =0 -> 0 | Y101: =0 -> 0 | Z101: =0 -> 0 | AA101: =0 -> 0 | AC101: < eXports ( + ) | AH101: Balance > | AI101: =AI103-AK101 -> 0 | AK101: =-SUM(AL101:AP101) -> 0 | AL101: =AL$63*W101 -> 0 | AM101: =AM$63*X101 -> 0 | AN101: =AN$63*Y101 -> 0 | AO101: =AO$63*Z101 -> 0 | AP101: =AP$63*AA101 -> 0 | AS101: < Transactions
H102: A | I102: 0 | J102: 1 | K102: 2 | L102: 3 | M102: L | N102: N | T102: r | U102: R | V102: 0 | W102: 1 | X102: 2 | Y102: 3 | Z102: L | AA102: N | AI102: - NCF | AJ102: PR | AK102: 0 | AL102: 1 | AM102: 2 | AN102: 3 | AO102: L | AP102: N
D103: 0 | E103: 0 | F103: 0 | G103: 0 | H103: 0 | I103: =I31+DT*(V103-I$11*I31*3) -> 103184.1559 | J103: -334.7982787 | K103: -843.2854518 | L103: -1071.533864 | M103: -292 | N103: -2922 | O103: 0 | T103: 0 | U103: 0 | V103: =-V101-SUM(V104:V108) -> 309552.4676 | W103: =-W53 -> -100.4394836 | X103: =-X53 -> -843.2854518 | Y103: =-Y53 -> -3214.601592 | Z103: =-Z53 -> -876 | AA103: =-AA53 -> -8766 | AB103: 0 | AC103: < Output ( - ) | AI103: =AK103-AK103 -> 0 | AJ103: 0 | AK103: =-SUM(AL103:AP103) -> 658903.2265 | AL103: =-AL101-SUM(AL104:AL108) -> -194516.2557 | AM103: =-AM101-SUM(AM104:AM108) -> -185683.8093 | AN103: =-AN101-SUM(AN104:AN108) -> -152838.9792 | AO103: =-AO101-SUM(AO104:AO108) -> -85324.0356 | AP103: =-AP101-SUM(AP104:AP108) -> -40540.14665 | AQ103: 0
D104: 1 | E104: =K_1+DT*(T104-T22) -> 171230.4855 | F104: 1 | H104: 1 | I104: -27663.97384 | J104: 98.53505459 | K104: 229.006448 | L104: 260.2951811 | M104: 6.011500804 | N104: 175.6206857 | O104: 1 | S104: Cost of Sales | T104: -17862.37449 | U104: 1 | V104: =V$95*V84 -> -82991.92152 | W104: =W$95*W84 -> 29.56051638 | X104: 229.006448 | Y104: 780.8855434 | Z104: 18.03450241 | AA104: 526.8620571 | AB104: 1 | AH104: Cost of Sales | AI104: =AL103-AK104 -> -17862.37449 | AJ104: 1 | AK104: -176653.8813 | AL104: =AL$63*W104 -> 57248.41224 | AM104: 50425.14316 | AN104: 37127.38449 | AO104: 20928.36238 | AP104: 10924.57898 | AQ104: 1
D105: 2 | E105: =K_2+DT*(T105-T23) -> 177116.4963 | F105: 2 | H105: 2 | I105: -26184.65923 | J105: 87.43138541 | K105: 138.8071569 | L105: 249.6815052 | M105: 10.33416269 | N105: 229.1659821 | O105: 2 | S105: Minus Sales > | T105: -18476.38974 | U105: 2 | V105: =V$95*V85 -> -78553.97768 | W105: 26.22941562 | X105: 138.8071569 | Y105: 749.0445155 | Z105: 31.00248807 | AA105: 687.4979462 | AB105: 2 | AH105: Minus Sales > | AI105: =AM103-AK105 -> -18476.38974 | AJ105: 2 | AK105: -167207.4196 | AL105: 50797.23166 | AM105: 30564.0772 | AN105: 35613.49543 | AO105: 35977.22244 | AP105: 14255.39287 | AQ105: 2
D106: 3 | E106: =K_3+DT*(T106-T24) -> 134339.3255 | F106: 3 | H106: 3 | I106: -21739.97718 | J106: 65.54840042 | K106: 172.4284899 | L106: 161.7994693 | M106: 8.162967391 | N106: 181.2968455 | O106: 3 | T106: -14013.97265 | U106: 3 | V106: =V$95*V86 -> -65219.93155 | W106: 19.66452013 | X106: 172.4284899 | Y106: 485.398408 | Z106: 24.48890217 | AA106: 543.8905366 | AB106: 3 | AC106: < Rates of | AI106: =AN103-AK106 -> -14013.97265 | AJ106: 3 | AK106: -138825.0065 | AL106: 38083.31831 | AM106: 37967.18985 | AN106: 23078.38002 | AO106: 28418.45077 | AP106: 11277.66754 | AQ106: 3
D107: L | F107: L | G107: =G35+DT*(G65-3*G35/Term+T107-T25) -> -107974.7941 | H107: L | I107: -20361.29869 | J107: 66.62678126 | K107: 201.9377713 | L107: 299.8124048 | M107: 267.4913691 | N107: 65.62932314 | O107: L | S107: Consumption > | T107: 44697.1415 | U107: L | V107: =V$95*V87 -> -61083.89608 | W107: =W$95*W87 -> 19.98803438 | X107: 201.9377713 | Y107: 899.4372145 | Z107: =-Z101-SUM(Z103:Z106)-Z108 -> 802.4741074 | AA107: =AA$95*AA87 -> 196.8879694 | AB107: L | AC107: Change | AI107: =AO103-AK107 -> 44697.1415 | AJ107: L | AK107: -130021.1771 | AL107: =AL$63*W107 -> 38709.85261 | AM107: 44464.86601 | AN107: 42763.95122 | AO107: 0 | AP107: =AP$63*AA107 -> 4082.507257 | AQ107: L
D108: N | F108: N | G108: =G36+DT*(G66-3*G36/Term+T108-T26) -> -13662.2103 | H108: N | I108: -7234.246934 | J108: 16.65665705 | K108: 101.1055857 | L108: 99.94530353 | M108: 0 | N108: 2270.287164 | O108: N | S108: Minus Wages | T108: 5655.595381 | U108: N | V108: =V$95*V88 -> -21702.7408 | W108: 4.996997114 | X108: 101.1055857 | Y108: 299.8359106 | Z108: =Z$95*Z88 -> 0 | AA108: =-AA101-SUM(AA103:AA107) -> 6810.861491 | AB108: N | AI108: =AP103-AK108 -> 5655.595381 | AJ108: N | AK108: -46195.74203 | AL108: 9677.440919 | AM108: 22262.53311 | AN108: 14255.76799 | AO108: =AO$63*Z108 -> 0 | AP108: 0 | AQ108: N
G111: 0 | I111: =I39+DT*I$11*3*(I29-I39) -> 0 | J111: 0 | K111: 0 | L111: 0 | M111: 0 | N111: 0 | T111: =GPE!D12 -> 0 | V111: =GPE!F12 -> 0 | W111: =GPE!G12 -> 0 | X111: =GPE!H12 -> 0 | Y111: =GPE!I12 -> 0 | Z111: =GPE!J12 -> 0 | AA111: =GPE!K12 -> 0
H112: B | I112: 0 | J112: 1 | K112: 2 | L112: 3 | M112: L | N112: N | T112: r | U112: R | V112: 0 | W112: 1 | X112: 2 | Y112: 3 | Z112: L | AA112: N
F113: 0 | H113: 0 | I113: =I41+DT*I$11*3*(I31-I41) -> 103184.1559 | J113: -334.7982787 | K113: -843.2854518 | L113: -1071.533864 | M113: -292 | N113: -2922 | O113: 0 | T113: =GPE!D14 -> 0 | U113: 0 | V113: =GPE!F14 -> 309552.4676 | W113: =GPE!G14 -> -100 | X113: =GPE!H14 -> -750 | Y113: =GPE!I14 -> -3200 | Z113: =GPE!J14 -> -876 | AA113: =GPE!K14 -> -8766
F114: 1 | H114: 1 | I114: -27663.97384 | J114: 98.53505459 | K114: 229.006448 | L114: 260.2951811 | M114: 6.011500804 | N114: 175.6206857 | O114: 1 | T114: =GPE!D15 -> -16991.26862 | U114: 1 | V114: =GPE!F15 -> -84956.36248 | W114: =GPE!G15 -> 30 | X114: =GPE!H15 -> 200 | Y114: =GPE!I15 -> 800 | Z114: =GPE!J15 -> 20 | AA114: =GPE!K15 -> 600
F115: 2 | H115: 2 | I115: -26184.65923 | J115: 87.43138541 | K115: 138.8071569 | L115: 249.6815052 | M115: 10.33416269 | N115: 229.1659821 | O115: 2 | T115: =GPE!D16 -> -14578.35223 | U115: 2 | V115: =GPE!F16 -> -72891.77802 | W115: =GPE!G16 -> 25 | X115: =GPE!H16 -> 100 | Y115: =GPE!I16 -> 700 | Z115: =GPE!J16 -> 30 | AA115: =GPE!K16 -> 600
F116: 3 | H116: 3 | I116: -21739.97718 | J116: 65.54840042 | K116: 172.4284899 | L116: 161.7994693 | M116: 8.162967391 | N116: 181.2968455 | O116: 3 | T116: =GPE!D17 -> -13347.81037 | U116: 3 | V116: =GPE!F17 -> -66739.0777 | W116: =GPE!G17 -> 20 | X116: =GPE!H17 -> 150 | Y116: =GPE!I17 -> 500 | Z116: =GPE!J17 -> 26 | AA116: =GPE!K17 -> 600
D117: System State | F117: L | G117: =G45+DT*3*(G35-G45)/Term -> -107974.7941 | H117: L | I117: -20361.29869 | J117: 66.62678126 | K117: 201.9377713 | L117: 299.8124048 | M117: 267.4913691 | N117: 65.62932314 | O117: L | T117: =GPE!D18 -> 40425.70948 | U117: L | V117: =GPE!F18 -> -62719.38856 | W117: =GPE!G18 -> 20 | X117: =GPE!H18 -> 200 | Y117: =GPE!I18 -> 900 | Z117: =GPE!J18 -> 800 | AA117: =GPE!K18 -> 200
D118: at time = t > | F118: N | G118: =G46+DT*3*(G36-G46)/Term -> -13662.2103 | H118: N | I118: -7234.246934 | J118: 16.65665705 | K118: 101.1055857 | L118: 99.94530353 | M118: 0 | N118: 2270.287164 | O118: N | T118: =GPE!D19 -> 4491.721738 | U118: N | V118: =GPE!F19 -> -22245.86087 | W118: =GPE!G19 -> 5 | X118: =GPE!H19 -> 100 | Y118: =GPE!I19 -> 300 | Z118: =GPE!J19 -> 0 | AA118: =GPE!K19 -> 6766
G121: 0 | I121: =I49+DT*I$11*3*(I39-I49) -> 0 | J121: 0 | K121: 0 | L121: 0 | M121: 0 | N121: 0 | T121: u
H122: C | I122: 0 | J122: 1 | K122: 2 | L122: 3 | M122: L | N122: N | T122: (h/w-1)
F123: 0 | H123: 0 | I123: =I51+DT*I$11*3*(I41-I51) -> 103184.1559 | J123: -334.7982787 | K123: -843.2854518 | L123: -1071.533864 | M123: -292 | N123: -2922 | O123: 0 | T123: =-SUM(T124:T128) -> -4.079993232e-09 | U123: 0
F124: 1 | H124: 1 | I124: -27663.97384 | J124: 98.53505459 | K124: 229.006448 | L124: 260.2951811 | M124: 6.011500804 | N124: 175.6206857 | O124: 1 | T124: =AI72/(T7/T32-1) -> -17862.37449 | U124: 1
F125: 2 | H125: 2 | I125: -26184.65923 | J125: 87.43138541 | K125: 138.8071569 | L125: 249.6815052 | M125: 10.33416269 | N125: 229.1659821 | O125: 2 | T125: =AI73/(T8/T33-1) -> -18476.38974 | U125: 2
F126: 3 | H126: 3 | I126: -21739.97718 | J126: 65.54840042 | K126: 172.4284899 | L126: 161.7994693 | M126: 8.162967391 | N126: 181.2968455 | O126: 3 | T126: =AI74/(T9/T34-1) -> -14013.97265 | U126: 3
F127: L | G127: =G55+DT*3*(G45-G55)/Term -> -107974.7941 | H127: L | I127: -20361.29869 | J127: 66.62678126 | K127: 201.9377713 | L127: 299.8124048 | M127: 267.4913691 | N127: 65.62932314 | O127: L | T127: =AI75/(T10/T35-1) -> 44697.1415 | U127: L
F128: N | G128: =G56+DT*3*(G46-G56)/Term -> -13662.2103 | H128: N | I128: -7234.246934 | J128: 16.65665705 | K128: 101.1055857 | L128: 99.94530353 | M128: 0 | N128: 2270.287164 | O128: N | T128: =AI76/(T11/T36-1) -> 5655.595381 | U128: N
T130: ∂ZL/∂t
M131: =M59+DT*T131 -> -865.6226095 | N131: =N59+DT*T132 -> -8769.416036 | T131: =(T127-T25)/AO63*M11 -> 5.166379325e-12 | U131: L
T132: =(T128-T26)/AP63*N11 -> -9.316373693e-11 | U132: N

Sheet Series
B4: BUFFER ->
C5: =TicToc -> 300.0014954 | D5: ='1 DT'!AC23 -> 843.2854518 | E5: ='1 DT'!X56 -> 843.2854518 | F5: ='1 DT'!X91 -> 843.2854518 | G5: =-Iota -> 0.1043177238 | H5: ='1 DT'!T63 -> 0.469799593 | I5: ='1 DT'!AM63 -> 220.1909317 | J5: ='1 DT'!AM54 -> 220.1909317 | K5: ='1 DT'!AM55 -> 220.1909317 | L5: ='1 DT'!AM58 -> 220.1909317 | M5: ='1 DT'!AM62 -> 213.8158777 | N5: =-Ull -> 865.6226095 | O5: =-Unn -> 8769.416036 | P5: =-'1 DT'!AC25 -> 802.4741074 | Q5: =-'1 DT'!AC26 -> 6810.861491 | R5: ='1 DT'!AI94 -> -3.56508086e-09 | S5: ='1 DT'!AI95 -> -4.380307492e-09 | T5: ='1 DT'!AI96 -> 7.945388351e-09
A7: BOX: | C7: year | D7: Y2 | E7: S2 | F7: D2 | G7: -i | H7: G/$ | I7: P2 | J7: MC2 | K7: VMP1 | L7: VMPL | M7: P* | N7: -ZL1 | O7: -ZL2 | P7: -YL1 | Q7: -YL2 | R7: Sector 1 | S7: Sector 2 | T7: Sector 3
A8: 0 | C8: 0 | D8: 768.75 | E8: 768.75 | F8: 868.5171786 | G8: 0.108452161 | H8: 0.4610327682 | I8: 231.2965918 | J8: 226.2321365 | K8: 231.8879399 | L8: 231.8879399 | M8: 213.8158777 | N8: 863.2450447 | O8: 8725.940102 | P8: 800 | Q8: 6766 | R8: -1603.236668 | S8: 3021.713817 | T8: -1418.477149
A9: =1+A8 -> 1 | C9: 10.00013351 | D9: 842.171906 | E9: 842.171906 | F9: 847.6971048 | G9: 0.1042629031 | H9: 0.4731343321 | I9: 219.0347173 | J9: 219.0149147 | K9: 219.0532901 | L9: 219.4409073 | M9: 213.8158777 | N9: 865.5727677 | O9: 8763.914824 | P9: 802.231793 | Q9: 6802.152472 | R9: 50.63786598 | S9: -194.353116 | T9: 143.71525
A10: 2 | C10: 20.0003624 | D10: 842.9700854 | E10: 842.9700854 | F10: 844.4999901 | G10: 0.1043172109 | H10: 0.4705914982 | I10: 219.9340309 | J10: 219.9162766 | K10: 219.9407835 | L10: 220.0297109 | M10: 213.8158777 | N10: 865.6060681 | O10: 8768.231786 | P10: 802.4054877 | Q10: 6808.690636 | R10: -15.58475083 | S10: 4.24997344 | T10: 11.33477739
A11: 3 | C11: 30.00059128 | D11: 843.2040788 | E11: 843.2040788 | F11: 843.5942772 | G11: 0.1043185206 | H11: 0.4699942042 | I11: 220.1290315 | J11: 220.1240062 | K11: 220.1308804 | L11: 220.1553441 | M11: 213.8158777 | N11: 865.6178656 | O11: 8769.146405 | P11: 802.4561252 | Q11: 6810.332132 | R11: -4.770418828 | S11: 3.329017574 | T11: 1.441401254
A12: 4 | C12: 39.99929428 | D12: 843.2649489 | E12: 843.2649489 | F12: 843.3633126 | G12: 0.1043178883 | H12: 0.4698489164 | I12: 220.1752005 | J12: 220.1739641 | K12: 220.1756547 | L12: 220.1818678 | M12: 213.8158777 | N12: 865.6214219 | O12: 8769.347271 | P12: 802.4695835 | Q12: 6810.727546 | R12: -1.110615047 | S12: 0.6959856759 | T12: 0.4146293709 | Y12: b2 | Z12: Z2 | AA12: b1-2-3 | AB12: U1-2-3
A13: 5 | C13: 49.99761581 | D13: 843.2802871 | E13: 843.2802871 | F13: 843.3050916 | G13: 0.1043177586 | H13: 0.4698120683 | I13: 220.1869455 | J13: 220.1866379 | K13: 220.1870588 | L13: 220.1886226 | M13: 213.8158777 | N13: 865.6223119 | O13: 8769.398533 | P13: 802.4729682 | Q13: 6810.827594 | R13: -0.2710153923 | S13: 0.1563023886 | T13: 0.1147130037 | Y13: ='1 DT'!AI33 -> 1006825.568 | Z13: ='1 DT'!AR8 -> 5415.796956 | AA13: =SUM('1 DT'!AM42:AM46) -> 3209301.001 | AB13: =SUM('1 DT'!AM7:AM11) -> 13731.79707
A14: 6 | C14: 59.99593735 | D14: 843.2841493 | E14: 843.2841493 | F14: 843.2904052 | G14: 0.1043177324 | H14: 0.4698027393 | I14: 220.1899263 | J14: 220.1898488 | K14: 220.1899549 | L14: 220.190349 | M14: 213.8158777 | N14: 865.6225345 | O14: 8769.411623 | P14: 802.47382 | Q14: 6810.852942 | R14: -0.06833800433 | S14: 0.03909430402 | T14: 0.02924370031 | Y14: INITIAL | Z14: INITIAL
A15: 7 | C15: 69.99654388 | D15: 843.2851233 | E15: 843.2851233 | F15: 843.2867011 | G15: 0.104317726 | H15: 0.4698003863 | I15: 220.1906782 | J15: 220.1906587 | K15: 220.1906854 | L15: 220.1907849 | M15: 213.8158777 | N15: 865.6225906 | O15: 8769.414924 | P15: 802.4740349 | Q15: 6810.859335 | R15: -0.01728335337 | S15: 0.009942982685 | T15: 0.007340370686 | X15: Q1 | Y15: s | Z15: d | AA15: S | AB15: D
A16: 8 | C16: 79.99868011 | D16: 843.2853689 | E16: 843.2853689 | F16: 843.2857669 | G16: 0.1043177243 | H16: 0.4697997931 | I16: 220.1908678 | J16: 220.1908629 | K16: 220.1908696 | L16: 220.1908947 | M16: 213.8158777 | N16: 865.6226048 | O16: 8769.415756 | P16: 802.4740891 | Q16: 6810.860947 | R16: -0.004361883983 | S16: 0.00251421383 | T16: 0.001847670153 | X16: 600 | Y16: 206.9681676 | Z16: 216.0536658 | AA16: =$Y$13/($Z$13-X16) -> 209.0672795 | AB16: =$AA$13/($AB$13+X16) -> 223.9287219
A17: 9 | C17: 90.00081635 | D17: 843.2854309 | E17: 843.2854309 | F17: 843.2855313 | G17: 0.1043177239 | H17: 0.4697996435 | I17: 220.1909156 | J17: 220.1909144 | K17: 220.1909161 | L17: 220.1909224 | M17: 213.8158777 | N17: 865.6226083 | O17: 8769.415966 | P17: 802.4741027 | Q17: 6810.861354 | R17: -0.001100021451 | S17: 0.0006340371268 | T17: 0.0004659843237 | X17: =20+X16 -> 620 | Y17: 207.8557374 | Z17: 215.7525834 | AA17: 209.9391567 | AB17: 223.6166652
A18: 10 | C18: 100.0029526 | D18: 843.2854465 | E18: 843.2854465 | F18: 843.2854718 | G18: 0.1043177238 | H18: 0.4697996057 | I18: 220.1909277 | J18: 220.1909273 | K18: 220.1909278 | L18: 220.1909294 | M18: 213.8158777 | N18: 865.6226092 | O18: 8769.416019 | P18: 802.4741062 | Q18: 6810.861456 | R18: -0.000277410538 | S18: 0.000159874208 | T18: 0.0001175363299 | X18: 640 | Y18: 208.7509526 | Z18: 215.452339 | AA18: 210.8183362 | AB18: 223.305477
A19: 11 | C19: 110.0050888 | D19: 843.2854505 | E19: 843.2854505 | F19: 843.2854569 | G19: 0.1043177238 | H19: 0.4697995962 | I19: 220.1909307 | J19: 220.1909306 | K19: 220.1909307 | L19: 220.1909311 | M19: 213.8158777 | N19: 865.6226095 | O19: 8769.416032 | P19: 802.4741071 | Q19: 6810.861482 | R19: -6.997716485e-05 | S19: 4.031953068e-05 | T19: 2.965763417e-05 | X19: 660 | Y19: 209.6539124 | Z19: 215.1529291 | AA19: 211.7049104 | AB19: 222.9951538
A20: 12 | C20: 120.007225 | D20: 843.2854515 | E20: 843.2854515 | F20: 843.2854531 | G20: 0.1043177238 | H20: 0.4697995938 | I20: 220.1909315 | J20: 220.1909314 | K20: 220.1909315 | L20: 220.1909316 | M20: 213.8158777 | N20: 865.6226095 | O20: 8769.416035 | P20: 802.4741073 | Q20: 6810.861488 | R20: -1.763915918e-05 | S20: 1.015273794e-05 | T20: 7.486421244e-06 | X20: 680 | Y20: 210.5647177 | Z20: 214.8543502 | AA20: 212.5989728 | AB20: 222.6856918
A21: 13 | C21: 130.0078278 | D21: 843.2854517 | E21: 843.2854517 | F21: 843.2854521 | G21: 0.1043177238 | H21: 0.4697995932 | I21: 220.1909317 | J21: 220.1909317 | K21: 220.1909317 | L21: 220.1909317 | M21: 213.8158777 | N21: 865.6226095 | O21: 8769.416036 | P21: 802.4741073 | Q21: 6810.86149 | R21: -4.450844956e-06 | S21: 2.57398019e-06 | T21: 1.876864767e-06 | X21: 700 | Y21: 211.4834712 | Z21: 214.5565989 | AA21: 213.5006188 | AB21: 222.3770875
A22: 14 | C22: 140.0023346 | D22: 843.2854518 | E22: 843.2854518 | F22: 843.2854519 | G22: 0.1043177238 | H22: 0.4697995931 | I22: 220.1909317 | J22: 220.1909317 | K22: 220.1909317 | L22: 220.1909317 | M22: 213.8158777 | N22: 865.6226095 | O22: 8769.416036 | P22: 802.4741073 | Q22: 6810.861491 | R22: -1.123498036e-06 | S22: 6.482092246e-07 | T22: 4.752888111e-07 | X22: 720 | Y22: 212.4102773 | Z22: 214.2596716 | AA22: 214.4099453 | AB22: 222.0693375
A23: 15 | C23: 149.9968414 | D23: 843.2854518 | E23: 843.2854518 | F23: 843.2854518 | G23: 0.1043177238 | H23: 0.469799593 | I23: 220.1909317 | J23: 220.1909317 | K23: 220.1909317 | L23: 220.1909317 | M23: 213.8158777 | N23: 865.6226095 | O23: 8769.416036 | P23: 802.4741073 | Q23: 6810.861491 | R23: -3.000221361e-07 | S23: 1.663944899e-07 | T23: 1.336276462e-07 | X23: 740 | Y23: 213.3452426 | Z23: 213.9635651 | AA23: 215.3270507 | AB23: 221.762438
A24: 16 | C24: 159.9913483 | D24: 843.2854518 | E24: 843.2854518 | F24: 843.2854518 | G24: 0.1043177238 | H24: 0.469799593 | I24: 220.1909317 | J24: 220.1909317 | K24: 220.1909317 | L24: 220.1909317 | M24: 213.8158777 | N24: 865.6226095 | O24: 8769.416036 | P24: 802.4741073 | Q24: 6810.861491 | R24: -6.631333485e-08 | S24: 4.177955728e-08 | T24: 2.453377757e-08 | X24: 760 | Y24: 214.288475 | Z24: 213.6682759 | AA24: 216.2520355 | AB24: 221.4563856
A25: 17 | C25: 169.9858551 | D25: 843.2854518 | E25: 843.2854518 | F25: 843.2854518 | G25: 0.1043177238 | H25: 0.469799593 | I25: 220.1909317 | J25: 220.1909317 | K25: 220.1909317 | L25: 220.1909317 | M25: 213.8158777 | N25: 865.6226095 | O25: 8769.416036 | P25: 802.4741074 | Q25: 6810.861491 | R25: -2.265292629e-08 | S25: 1.038125434e-08 | T25: 1.227167196e-08 | X25: 780 | Y25: 215.2400849 | Z25: 213.3738006 | AA25: 217.1850014 | AB25: 221.1511769
A26: 18 | C26: 179.9803619 | D26: 843.2854518 | E26: 843.2854518 | F26: 843.2854518 | G26: 0.1043177238 | H26: 0.469799593 | I26: 220.1909317 | J26: 220.1909317 | K26: 220.1909317 | L26: 220.1909317 | M26: 213.8158777 | N26: 865.6226095 | O26: 8769.416036 | P26: 802.4741074 | Q26: 6810.861491 | R26: -4.891273107e-09 | S26: 7.954788665e-09 | T26: -3.063515558e-09 | X26: 800 | Y26: 216.2001843 | Z26: 213.0801359 | AA26: 218.1260523 | AB26: 220.8468082
A27: 19 | C27: 189.9748688 | D27: 843.2854518 | E27: 843.2854518 | F27: 843.2854518 | G27: 0.1043177238 | H27: 0.469799593 | I27: 220.1909317 | J27: 220.1909317 | K27: 220.1909317 | L27: 220.1909317 | M27: 213.8158777 | N27: 865.6226095 | O27: 8769.416036 | P27: 802.4741074 | Q27: 6810.861491 | R27: 6.17405301e-09 | S27: -2.416823348e-09 | T27: -3.757229662e-09 | X27: 820 | Y27: 217.1688872 | Z27: 212.7872784 | AA27: 219.0752938 | AB27: 220.5432762
A28: 20 | C28: 199.9693756 | D28: 843.2854518 | E28: 843.2854518 | F28: 843.2854518 | G28: 0.1043177238 | H28: 0.469799593 | I28: 220.1909317 | J28: 220.1909317 | K28: 220.1909317 | L28: 220.1909317 | M28: 213.8158777 | N28: 865.6226095 | O28: 8769.416036 | P28: 802.4741074 | Q28: 6810.861491 | R28: 2.208124373e-09 | S28: -3.622828801e-10 | T28: -1.845841493e-09 | X28: 840 | Y28: 218.14631 | Z28: 212.4952248 | AA28: 220.0328332 | AB28: 220.2405774
A29: 21 | C29: 209.9638824 | D29: 843.2854518 | E29: 843.2854518 | F29: 843.2854518 | G29: 0.1043177238 | H29: 0.469799593 | I29: 220.1909317 | J29: 220.1909317 | K29: 220.1909317 | L29: 220.1909317 | M29: 213.8158777 | N29: 865.6226095 | O29: 8769.416036 | P29: 802.4741074 | Q29: 6810.861491 | R29: 9.530067561e-09 | S29: -4.844174789e-09 | T29: -4.685892772e-09 | X29: 860 | Y29: 219.1325708 | Z29: 212.2039718 | AA29: 220.9987798 | AB29: 219.9387084
A30: 22 | C30: 219.9583893 | D30: 843.2854518 | E30: 843.2854518 | F30: 843.2854518 | G30: 0.1043177238 | H30: 0.469799593 | I30: 220.1909317 | J30: 220.1909317 | K30: 220.1909317 | L30: 220.1909317 | M30: 213.8158777 | N30: 865.6226095 | O30: 8769.416036 | P30: 802.4741074 | Q30: 6810.861491 | R30: 6.34264921e-09 | S30: 8.656645264e-10 | T30: -7.208313737e-09 | X30: 880 | Y30: 220.1277901 | Z30: 211.9135162 | AA30: 221.9732449 | AB30: 219.6376657
A31: 23 | C31: 229.9528961 | D31: 843.2854518 | E31: 843.2854518 | F31: 843.2854518 | G31: 0.1043177238 | H31: 0.469799593 | I31: 220.1909317 | J31: 220.1909317 | K31: 220.1909317 | L31: 220.1909317 | M31: 213.8158777 | N31: 865.6226095 | O31: 8769.416036 | P31: 802.4741074 | Q31: 6810.861491 | R31: 6.076659246e-09 | S31: 2.460937418e-09 | T31: -8.537596664e-09 | X31: 900 | Y31: 221.1320904 | Z31: 211.6238545 | AA31: 222.9563415 | AB31: 219.337446
A32: 24 | C32: 239.947403 | D32: 843.2854518 | E32: 843.2854518 | F32: 843.2854518 | G32: 0.1043177238 | H32: 0.469799593 | I32: 220.1909317 | J32: 220.1909317 | K32: 220.1909317 | L32: 220.1909317 | M32: 213.8158777 | N32: 865.6226095 | O32: 8769.416036 | P32: 802.4741074 | Q32: 6810.861491 | R32: -4.631279306e-09 | S32: 5.606849526e-09 | T32: -9.755702202e-10 | X32: 920 | Y32: 222.1455967 | Z32: 211.3349837 | AA32: 223.948185 | AB32: 219.038046
A33: 25 | C33: 249.9419098 | D33: 843.2854518 | E33: 843.2854518 | F33: 843.2854518 | G33: 0.1043177238 | H33: 0.469799593 | I33: 220.1909317 | J33: 220.1909317 | K33: 220.1909317 | L33: 220.1909317 | M33: 213.8158777 | N33: 865.6226095 | O33: 8769.416036 | P33: 802.4741074 | Q33: 6810.861491 | R33: -3.391991526e-09 | S33: -2.088646049e-09 | T33: 5.480637575e-09 | X33: 940 | Y33: 223.1684361 | Z33: 211.0469004 | AA33: 224.9488925 | AB33: 218.7394622
A34: 26 | C34: 259.9424133 | D34: 843.2854518 | E34: 843.2854518 | F34: 843.2854518 | G34: 0.1043177238 | H34: 0.469799593 | I34: 220.1909317 | J34: 220.1909317 | K34: 220.1909317 | L34: 220.1909317 | M34: 213.8158777 | N34: 865.6226095 | O34: 8769.416036 | P34: 802.4741074 | Q34: 6810.861491 | R34: -1.03940112e-08 | S34: -4.870639743e-09 | T34: 1.526465094e-08 | X34: 960 | Y34: 224.2007381 | Z34: 210.7596014 | AA34: 225.9585835 | AB34: 218.4416913
A35: 27 | C35: 269.952179 | D35: 843.2854518 | E35: 843.2854518 | F35: 843.2854518 | G35: 0.1043177238 | H35: 0.469799593 | I35: 220.1909317 | J35: 220.1909317 | K35: 220.1909317 | L35: 220.1909317 | M35: 213.8158777 | N35: 865.6226095 | O35: 8769.416036 | P35: 802.4741074 | Q35: 6810.861491 | R35: 1.723640498e-08 | S35: -3.832811776e-09 | T35: -1.34035932e-08 | X35: 980 | Y35: 225.2426347 | Z35: 210.4730836 | AA35: 226.9773794 | AB35: 218.1447301
A36: 28 | C36: 279.9619446 | D36: 843.2854518 | E36: 843.2854518 | F36: 843.2854518 | G36: 0.1043177238 | H36: 0.469799593 | I36: 220.1909317 | J36: 220.1909317 | K36: 220.1909317 | L36: 220.1909317 | M36: 213.8158777 | N36: 865.6226095 | O36: 8769.416036 | P36: 802.4741074 | Q36: 6810.861491 | R36: -1.315734863e-09 | S36: -3.456729733e-10 | T36: 1.661407837e-09 | X36: 1000 | Y36: 226.2942602 | Z36: 210.1873437 | AA36: 228.0054039 | AB36: 217.8485751
A37: 29 | C37: 289.9717102 | D37: 843.2854518 | E37: 843.2854518 | F37: 843.2854518 | G37: 0.1043177238 | H37: 0.469799593 | I37: 220.1909317 | J37: 220.1909317 | K37: 220.1909317 | L37: 220.1909317 | M37: 213.8158777 | N37: 865.6226095 | O37: 8769.416036 | P37: 802.4741074 | Q37: 6810.861491 | R37: 6.972022903e-09 | S37: -7.202642022e-09 | T37: 2.306191185e-10
A38: 30 | C38: 299.9814758 | D38: 843.2854518 | E38: 843.2854518 | F38: 843.2854518 | G38: 0.1043177238 | H38: 0.469799593 | I38: 220.1909317 | J38: 220.1909317 | K38: 220.1909317 | L38: 220.1909317 | M38: 213.8158777 | N38: 865.6226095 | O38: 8769.416036 | P38: 802.4741074 | Q38: 6810.861491 | R38: 2.414936137e-09 | S38: 3.830137032e-09 | T38: -6.245073169e-09
C39: 300.0014954 | D39: 843.2854518 | E39: 843.2854518 | F39: 843.2854518 | G39: 0.1043177238 | H39: 0.469799593 | I39: 220.1909317 | J39: 220.1909317 | K39: 220.1909317 | L39: 220.1909317 | M39: 213.8158777 | N39: 865.6226095 | O39: 8769.416036 | P39: 802.4741074 | Q39: 6810.861491 | R39: -3.56508086e-09 | S39: -4.380307492e-09 | T39: 7.945388351e-09

Sheet GPE
F10: VALUE | G10: CAPITAL | H10: GENERAL | I10: NON_DUR | J10: BOURGS | K10: PRLTRT
M11: + XPT;
D12: 0 | F12: =F37/F$26 -> 0 | G12: 0 | H12: 0 | I12: 0 | J12: 0 | K12: 0 | M12: - MPT
D13: r | E13: R | F13: 0 | G13: 1 | H13: 2 | I13: 3 | J13: L | K13: N
C14: VALUE | D14: =-F37 -> 0 | E14: 0 | F14: =F39/F$26 -> 309552.4676 | G14: =-G12-SUM(G15:G19) -> -100 | H14: =-H12-SUM(H15:H19) -> -750 | I14: =-I12-SUM(I15:I19) -> -3200 | J14: =-J12-SUM(J15:J19) -> -876 | K14: =-K12-SUM(K15:K19) -> -8766 | L14: 0 | M14: VALUE
C15: CAPITAL | D15: =G39-F40 -> -16991.26862 | E15: 1 | F15: -84956.36248 | G15: 30 | H15: 200 | I15: 800 | J15: 20 | K15: 600 | L15: 1 | M15: CAPITAL
C16: GENERAL | D16: =H39-F41 -> -14578.35223 | E16: 2 | F16: -72891.77802 | G16: 25 | H16: 100 | I16: 700 | J16: 30 | K16: 600 | L16: 2 | M16: GENERAL | P16: Experimenters are invited to change
C17: NON_DUR | D17: =I39-F42 -> -13347.81037 | E17: 3 | F17: -66739.0777 | G17: 20 | H17: 150 | I17: 500 | J17: 26 | K17: 600 | L17: 3 | M17: NON_DUR | P17: any data set in red type that
C18: BOURGS | D18: =J39-F43 -> 40425.70948 | E18: L | F18: -62719.38856 | G18: 20 | H18: 200 | I18: 900 | J18: 800 | K18: 200 | L18: L | M18: BOURGS | P18: appears within the marquee.
C19: PRLTRT | D19: =K39-F44 -> 4491.721738 | E19: N | F19: -22245.86087 | G19: 5 | H19: 100 | I19: 300 | J19: 0 | K19: 6766 | L19: N | M19: PRLTRT
F20: 0 | G20: 1 | H20: 2 | I20: 3 | J20: L | K20: N
F23: VALUE | G23: CAPITAL | H23: GENERAL | I23: NON_DUR | J23: BOURGS | K23: PRLTRT
D25: Interest rate | F25: 0 | G25: 1 | H25: 2 | I25: 3 | J25: L | K25: N
D26: 0.1 | E26: P | F26: 2 | G26: 1869.039936 | H26: 213.8158777 | I26: 45.8831143 | J26: 1118.592995 | K26: 20 | M26: Prices
J28: Investment Fractions
J29: 0.9 | K29: =1-J29 -> 0.1
J30: L | K30: N
F35: VALUE | G35: CAPITAL | H35: GENERAL | I35: NON_DUR | J35: BOURGS | K35: PRLTRT
M36: + XPT;
F37: =-SUM(G37:K37) -> 0 | G37: =G$26*G12 -> 0 | H37: =H$26*H12 -> 0 | I37: =I$26*I12 -> 0 | J37: =J$26*J12 -> 0 | K37: =K$26*K12 -> 0 | M37: - MPT
E38: PR | F38: 0 | G38: 1 | H38: 2 | I38: 3 | J38: L | K38: N
E39: 0 | F39: =-F37-SUM(F40:F44) -> 619104.9353 | G39: -186903.9936 | H39: -160361.9083 | I39: -146825.9658 | J39: -85013.06765 | K39: -40000 | L39: 0 | M39: VALUE
C40: % return > | D40: =D15/F40 -> 0.0999999772 | E40: 1 | F40: =-SUM(G40:K40) -> -169912.725 | G40: =G$26*G15 -> 56071.19807 | H40: 42763.17554 | I40: 36706.49144 | J40: 22371.85991 | K40: 12000 | L40: 1 | M40: CAPITAL
C41: on asset | D41: =D16/F41 -> 0.09999997685 | E41: 2 | F41: =-SUM(G41:K41) -> -145783.556 | G41: 46725.9984 | H41: 21381.58777 | I41: 32118.18001 | J41: 33557.78986 | K41: 12000 | L41: 2 | M41: GENERAL
C42: turnover | D42: =D17/F42 -> 0.09999996125 | E42: 3 | F42: =-SUM(G42:K42) -> -133478.1554 | G42: 37380.79872 | H42: 32072.38165 | I42: 22941.55715 | J42: 29083.41788 | K42: 12000 | L42: 3 | M42: NON_DUR
E43: L | F43: =-SUM(G43:K43) -> -125438.7771 | G43: =G$26*G18 -> 37380.79872 | H43: 42763.17554 | I43: 41294.80287 | K43: =K$26*K18 -> 4000 | L43: L | M43: BOURGS
E44: N | F44: =-SUM(G44:K44) -> -44491.72174 | G44: 9345.199679 | H44: 21381.58777 | I44: 13764.93429 | J44: =J$26*J19 -> 0 | L44: N | M44: PRLTRT
F45: 0 | G45: 1 | H45: 2 | I45: 3 | J45: L | K45: N
F47: VALUE | G47: CAPITAL | H47: GENERAL | I47: NON_DUR | J47: BOURGS | K47: PRLTRT

Sheet Utility
F9: VALUE | G9: CAPITAL | H9: GENERAL | I9: NON_DUR | J9: BOURGS | K9: PRLTRT
E10: E | F10: 0 | G10: 1 | H10: 2 | I10: 3 | J10: L | K10: N
C11: VALUE | E11: 0 | F11: =GPE!F14 -> 309552.4676 | G11: =GPE!G14 -> -100 | H11: =GPE!H14 -> -750 | I11: =GPE!I14 -> -3200 | J11: =GPE!J14 -> -876 | K11: =GPE!K14 -> -8766 | L11: 0 | M11: VALUE
C12: CAPITAL | E12: 1 | G12: =GPE!G15 -> 30 | H12: =GPE!H15 -> 200 | I12: =GPE!I15 -> 800 | J12: =GPE!J15 -> 20 | K12: =GPE!K15 -> 600 | L12: 1 | M12: CAPITAL
C13: GENERAL | E13: 2 | G13: =GPE!G16 -> 25 | H13: =GPE!H16 -> 100 | I13: =GPE!I16 -> 700 | J13: =GPE!J16 -> 30 | K13: =GPE!K16 -> 600 | L13: 2 | M13: GENERAL
C14: NON_DUR | E14: 3 | G14: =GPE!G17 -> 20 | H14: =GPE!H17 -> 150 | I14: =GPE!I17 -> 500 | J14: =GPE!J17 -> 26 | K14: =GPE!K17 -> 600 | L14: 3 | M14: NON_DUR
C15: BOURGS | E15: L | G15: =GPE!G18 -> 20 | H15: =GPE!H18 -> 200 | I15: =GPE!I18 -> 900 | J15: =GPE!J18 -> 800 | K15: =GPE!K18 -> 200 | L15: L | M15: BOURGS
C16: PRLTRT | E16: N | G16: =GPE!G19 -> 5 | H16: =GPE!H19 -> 100 | I16: =GPE!I19 -> 300 | J16: =GPE!J19 -> 0 | K16: =GPE!K19 -> 6766 | L16: N | M16: PRLTRT
F17: 0 | G17: 1 | H17: 2 | I17: 3 | J17: L | K17: N
F18: VALUE | G18: CAPITAL | H18: GENERAL | I18: NON_DUR | J18: BOURGS | K18: PRLTRT
F22: 0 | G22: 1 | H22: 2 | I22: 3 | J22: L | K22: N
E23: P | F23: =GPE!F26 -> 2 | G23: =GPE!G26 -> 1869.039936 | H23: =GPE!H26 -> 213.8158777 | I23: =GPE!I26 -> 45.8831143 | J23: =GPE!J26 -> 1118.592995 | K23: =GPE!K26 -> 20
F24: VALUE | G24: CAPITAL | H24: GENERAL | I24: NON_DUR | J24: BOURGS | K24: PRLTRT
H32: Sectors' Production and Utility Tradeoffs, physical units/year
F35: VALUE | G35: CAPITAL | H35: GENERAL | I35: NON_DUR | J35: BOURGS | K35: PRLTRT
D36: z | E36: U | F36: 0 | G36: 1 | H36: 2 | I36: 3 | J36: L | K36: N
C37: VALUE | D37: 0 | E37: 0 | F37: =-F11-(G23*(G37+G11)+H23*(H37+H11)+I23*(I37+I11)+J23*(J41+J15)+K23*(K42+K16))/F23 -> -1747827.277 | G37: =IF(G11<0,D38/G23-G11,0) -> 709.0221284 | H37: =IF(H11<0,D39/H23-H11,0) -> 5283.704347 | I37: =IF(I11<0,D40/I23-I11,0) -> 22353.65259 | J37: =-J11 -> 876 | K37: =-K11 -> 8766 | L37: 0 | M37: VALUE
C38: CAPITAL | D38: 1138286.68 | E38: 1 | G38: =IF(G12>0,$D38/G$23-G12,0) -> 579.0221284 | H38: 5123.677045 | I38: 24008.40059 | J38: 997.6057642 | K38: 56314.33399 | L38: 1 | M38: CAPITAL
C39: GENERAL | D39: 969377.9742 | E39: 2 | G39: 493.6502202 | H39: 4433.704347 | I39: 20427.11809 | J39: 836.6047242 | K39: 47868.89871 | L39: 2 | M39: GENERAL
C40: NON_DUR | D40: 878829.2311 | E40: 3 | G40: 450.2035597 | H40: 3960.215016 | I40: 18653.65259 | J40: 759.6559399 | K40: 43341.46156 | L40: 3 | M40: NON_DUR
C41: BOURGS | D41: 70745.46403 | E41: L | G41: =IF(G15>0,$D41/G$23-G15,0) -> 17.85123189 | H41: 130.8709568 | I41: 641.8627332 | J41: =IF(J15>0,-$D41/J$23-J15,0) -> -863.2450447 | K41: =IF(K15>0,$D41/K$23-K15,0) -> 3337.273201 | L41: L | M41: BOURGS
C42: PRLTRT | D42: 39198.80205 | E42: N | G42: 15.97269368 | H42: 83.32970625 | I42: 554.3186888 | J42: =IF(J16>0,$D42/J$23-J16,0) -> 0 | K42: =IF(K16>0,-$D42/K$23-K16,0) -> -8725.940102 | L42: N | M42: PRLTRT
F43: 0 | G43: 1 | H43: 2 | I43: 3 | J43: L | K43: N
F44: VALUE | G44: CAPITAL | H44: GENERAL | I44: NON_DUR | J44: BOURGS | K44: PRLTRT

Sheet IState
I4: Commodities' Turnover Fractions, dimensionless / year
D10: NPV | F10: Investment Term
D11: =(1-D14)^-F11 -> 0.5131581182 | F11: 7 | G11: yrs.
D13: n | F13: (1-1/NPV)/T | H13: VALUE | I13: CAPITAL | J13: GENERAL | K13: NON_DUR | L13: BOURGS | M13: PRLTRT
D14: -0.1 | F14: =(1-1/D11)/F11 -> -0.1355310143 | G14: V | H14: 1 | I14: 0.1 | J14: 0.3333333333 | K14: 1 | L14: 1 | M14: 1
H15: 0 | I15: 1 | J15: 2 | K15: 3 | L15: L | M15: N
H23: VALUE | I23: CAPITAL | J23: GENERAL | K23: NON_DUR | L23: BOURGS | M23: PRLTRT | N23: + XPT;
H24: 0 | I24: 0 | J24: 0 | K24: 0 | L24: 0 | M24: 0 | N24: - MPT
D25: e - | F25: e + | G25: E | H25: 0 | I25: 1 | J25: 2 | K25: 3 | L25: L | M25: N
B26: VALUE | C26: 0 | G26: 0 | H26: =GPE!F14 -> 309552.4676 | I26: =GPE!G14 -> -100 | J26: =GPE!H14 -> -750 | K26: =GPE!I14 -> -3200 | L26: =GPE!J14 -> -876 | M26: =GPE!K14 -> -8766 | N26: 0
B27: CAPITAL | C27: 1 | D27: =GPE!D15 -> -16991.26862 | G27: 1 | H27: =GPE!F15 -> -84956.36248 | I27: =GPE!G15 -> 30 | J27: =GPE!H15 -> 200 | K27: =GPE!I15 -> 800 | L27: =GPE!J15 -> 20 | M27: =GPE!K15 -> 600 | N27: 1
B28: GENERAL | C28: 2 | D28: =GPE!D16 -> -14578.35223 | G28: 2 | H28: =GPE!F16 -> -72891.77802 | I28: =GPE!G16 -> 25 | J28: =GPE!H16 -> 100 | K28: =GPE!I16 -> 700 | L28: =GPE!J16 -> 30 | M28: =GPE!K16 -> 600 | N28: 2
B29: NON_DUR | C29: 3 | D29: =GPE!D17 -> -13347.81037 | G29: 3 | H29: =GPE!F17 -> -66739.0777 | I29: =GPE!G17 -> 20 | J29: =GPE!H17 -> 150 | K29: =GPE!I17 -> 500 | L29: =GPE!J17 -> 26 | M29: =GPE!K17 -> 600 | N29: 3
B30: BOURGS | C30: L | F30: =GPE!D18 -> 40425.70948 | G30: L | H30: =GPE!F18 -> -62719.38856 | I30: =GPE!G18 -> 20 | J30: =GPE!H18 -> 200 | K30: =GPE!I18 -> 900 | L30: =GPE!J18 -> 800 | M30: =GPE!K18 -> 200 | N30: L
B31: PRLTRT | C31: N | F31: =GPE!D19 -> 4491.721738 | G31: N | H31: =GPE!F19 -> -22245.86087 | I31: =GPE!G19 -> 5 | J31: =GPE!H19 -> 100 | K31: =GPE!I19 -> 300 | L31: =GPE!J19 -> 0 | M31: =GPE!K19 -> 6766 | N31: N
H32: 0 | I32: 1 | J32: 2 | K32: 3 | L32: L | M32: N
H33: VALUE | I33: CAPITAL | J33: GENERAL | K33: NON_DUR | L33: BOURGS | M33: PRLTRT
H43: =H24/H$14/3 -> 0 | I43: 0 | J43: 0 | K43: 0 | L43: 0 | M43: 0
G44: A | H44: 0 | I44: 1 | J44: 2 | K44: 3 | L44: L | M44: N
C45: 0 | G45: 0 | H45: =H26/H$14/3 -> 103184.1559 | I45: -333.3333333 | J45: -750 | K45: -1066.666667 | L45: -292 | M45: -2922 | N45: 0
C46: 1 | D46: =D27/D14 -> 169912.6862 | G46: 1 | H46: -28318.78749 | I46: 100 | J46: 200 | K46: 266.6666667 | L46: 6.666666667 | M46: 200 | N46: 1
C47: 2 | D47: =D28/D14 -> 145783.5223 | G47: 2 | H47: -24297.25934 | I47: 83.33333333 | J47: 100 | K47: 233.3333333 | L47: 10 | M47: 200 | N47: 2
C48: 3 | D48: =D29/D14 -> 133478.1037 | G48: 3 | H48: -22246.35923 | I48: 66.66666667 | J48: 150 | K48: 166.6666667 | L48: 8.666666667 | M48: 200 | N48: 3
C49: L | F49: =F30/F14/3 -> -99425.48253 | G49: L | H49: -20906.46285 | I49: 66.66666667 | J49: 200 | K49: 300 | L49: 266.6666667 | M49: 66.66666667 | N49: L
C50: N | F50: =F31/F14/3 -> -11047.2174 | G50: N | H50: -7415.286956 | I50: 16.66666667 | J50: 100 | K50: 100 | L50: 0 | M50: 2255.333333 | N50: N
H53: =H43 -> 0 | I53: 0 | J53: 0 | K53: 0 | L53: 0 | M53: 0
G54: B | H54: 0 | I54: 1 | J54: 2 | K54: 3 | L54: L | M54: N
G55: 0 | H55: =H45 -> 103184.1559 | I55: -333.3333333 | J55: -750 | K55: -1066.666667 | L55: -292 | M55: -2922 | N55: 0
G56: 1 | H56: -28318.78749 | I56: 100 | J56: 200 | K56: 266.6666667 | L56: 6.666666667 | M56: 200 | N56: 1
G57: 2 | H57: -24297.25934 | I57: 83.33333333 | J57: 100 | K57: 233.3333333 | L57: 10 | M57: 200 | N57: 2
G58: 3 | H58: -22246.35923 | I58: 66.66666667 | J58: 150 | K58: 166.6666667 | L58: 8.666666667 | M58: 200 | N58: 3
F59: =F49 -> -99425.48253 | G59: L | H59: -20906.46285 | I59: 66.66666667 | J59: 200 | K59: 300 | L59: 266.6666667 | M59: 66.66666667 | N59: L
F60: =F50 -> -11047.2174 | G60: N | H60: -7415.286956 | I60: 16.66666667 | J60: 100 | K60: 100 | L60: 0 | M60: 2255.333333 | N60: N
H63: =H53 -> 0 | I63: 0 | J63: 0 | K63: 0 | L63: 0 | M63: 0
G64: C | H64: 0 | I64: 1 | J64: 2 | K64: 3 | L64: L | M64: N
G65: 0 | H65: =H55 -> 103184.1559 | I65: -333.3333333 | J65: -750 | K65: -1066.666667 | L65: -292 | M65: -2922 | N65: 0
G66: 1 | H66: -28318.78749 | I66: 100 | J66: 200 | K66: 266.6666667 | L66: 6.666666667 | M66: 200 | N66: 1
G67: 2 | H67: -24297.25934 | I67: 83.33333333 | J67: 100 | K67: 233.3333333 | L67: 10 | M67: 200 | N67: 2
G68: 3 | H68: -22246.35923 | I68: 66.66666667 | J68: 150 | K68: 166.6666667 | L68: 8.666666667 | M68: 200 | N68: 3
F69: =F59 -> -99425.48253 | G69: L | H69: -20906.46285 | I69: 66.66666667 | J69: 200 | K69: 300 | L69: 266.6666667 | M69: 66.66666667 | N69: L
F70: =F60 -> -11047.2174 | G70: N | H70: -7415.286956 | I70: 16.66666667 | J70: 100 | K70: 100 | L70: 0 | M70: 2255.333333 | N70: N
L73: =Utility!J41/L14 -> -863.2450447 | M73: =Utility!K42/M14 -> -8725.940102

Sheet Module1 (hidden)

Sheet Module2 (hidden)
